{"text_format":"1","workbook":"xlsx","n_sheets":11,"sheets":["Rekapitulace","SA102_RN","SA102_Slepy_rozpocet","VZ102_RN","VZ102_Slepy_rozpocet","ZT102_Slepy_rozpocet","EL102_RN","EL102_Slepy_rozpocet","SR102_RN ","SR102_Slepy_rozpocet","List1"],"not_rendered":{"charts":0,"images":0,"macros":0,"external_links":2,"defined_names":127,"comments":2,"pivot_tables":0},"unopened":[],"bounds":{"document_bytes":16777216,"sheet_cells":100000,"rows_first":2000,"rows_last":500,"rows_between":2000,"halvings":0,"cell_chars":16384,"cell_head_chars":4096},"cells_cut":0,"cells_raw":0,"read":"whole","date_system":"1900"}

{"sheet":"Rekapitulace","index":0,"n_rows":43,"n_cols":3,"rows_kept":43,"cut":false,"hidden":false,"merged":[]}
[]
[]
[]
[null,"REKAPITULACE NÁKLADŮ"]
[]
[]
[]
[]
[]
["Stavba: ","REKONSTRUKCE KLIMATIZACE OBJEKTU Q, VĚTEV c1"]
[null,"MENDELOVA UNIVERZITA V BRNĚ"]
[]
["Objekt: ","SO 03 - OBJEKT SPECIALIZOVANÝCH VÝUKOVÝCH PROSTOR"]
[]
[]
[]
[]
[null,null,"Náklady v Kč (bez DPH)"]
[]
["Profese: ","D1.1 - ARCHITEKTONICKO - STAVEBNÍ ŘEŠENÍ",{"$f":"SA102_RN!I21","v":0}]
[]
[null,"D1.4.1 - VZDUCHOTECHNIKA A KLIMATIZACE",{"$f":"VZ102_RN!D16","v":0}]
[]
[null,"D1.4.2 - ZDRAVOTECHNICKÉ INSTALACE",{"$f":"ZT102_Slepy_rozpocet!H21","v":0}]
[]
[null,"D1.4.3 - ELEKTROINSTALACE",{"$f":"EL102_RN!D13","v":0}]
[]
[null,"D1.4.4 - MĚŘENÍ A REGULACE",{"$f":"'SR102_RN '!D15","v":0}]
[]
[]
[null,"CELKEM NÁKLADY bez DPH",{"$f":"SUM(C19:C29)","v":0}]
[]
[]
[null,"DPH 21%",{"$f":"CEILING(C31*0.21,1)","v":0}]
[]
[null,"CELKEM NÁKLADY včetně DPH",{"$f":"C31+C34","v":0}]
[]
[]
[]
[]
["Datum: "]
[]
["Vypracoval:"]

{"sheet":"SA102_RN","index":1,"n_rows":61,"n_cols":10,"rows_kept":61,"cut":false,"hidden":false,"merged":[[11,3,11,6],[0,1,0,9],[1,4,1,9],[2,4,2,9],[3,4,3,9],[10,3,10,6],[12,4,12,6],[14,4,14,5],[14,6,14,7],[14,8,14,9],[15,4,15,5],[15,6,15,7],[15,8,15,9],[16,4,16,5],[16,6,16,7],[16,8,16,9],[17,4,17,5],[17,6,17,7],[17,8,17,9],[24,6,24,8],[18,4,18,5],[18,6,18,7],[18,8,18,9],[19,4,19,5],[19,6,19,7],[19,8,19,9],[20,4,20,5],[20,6,20,7],[20,8,20,9],[22,6,22,8],[23,6,23,8],[25,6,25,8],[26,6,26,8],[27,6,27,8],[28,6,28,8],[33,3,33,4],[33,6,33,8],[54,2,54,4],[34,3,34,4],[38,2,38,4],[39,2,39,4],[40,2,40,4],[41,1,41,4],[48,2,48,4],[49,2,49,4],[50,2,50,4],[51,2,51,4],[52,2,52,4],[53,2,53,4],[55,2,55,4],[56,2,56,4],[57,2,57,4],[58,2,58,4],[59,2,59,4]]}
["#RTSROZP#","Soupis stavebních prací, dodávek a služeb"]
[null,"Stavba:",null,"2018074","MENDELOVA UNIVERZITA V BRNĚ - REKONSTRUKCE KLIMATIZACE OBJEKTU Q, VĚTEV c1"]
[null,"Objekt:",null,"03","OBJEKT SPECIALIZOVANÝCH VÝUKOVÝCH PROSTOR "]
[2625,"Rozpočet:",null,"201807403","D1.1-ARCHITEKTONICKO-STAVEBNÍ ŘEŠENÍ"]
[null,"Zadavatel",null,null,null,null,null,"IČO:"]
[null,null,null,null,null,null,null,"DIČ:"]
[]
[null,"Projektant:",null,null,null,null,null,"IČO:"]
[null,null,null,null,null,null,null,"DIČ:"]
[]
[null,"Zhotovitel:",null,null,null,null,null,"IČO:"]
[null,null,null,null,null,null,null,"DIČ:"]
[]
[null,"Vypracoval:"]
[null,"Rozpis ceny",null,null,null,null,null,null,"Celkem"]
["HSV","HSV",null,null,null,null,null,null,{"$f":"SUMIF(F49:F60,A16,I49:I60)+SUMIF(F49:F60,\"PSU\",I49:I60)","v":0}]
["PSV","PSV",null,null,null,null,null,null,{"$f":"SUMIF(F49:F60,A17,I49:I60)","v":0}]
["MON","MON",null,null,null,null,null,null,{"$f":"SUMIF(F49:F60,A18,I49:I60)","v":0}]
["VN","Vedlejší náklady",null,null,null,null,null,null,{"$f":"SUMIF(F49:F60,A19,I49:I60)","v":0}]
["ON","Ostatní náklady",null,null,null,null,null,null,{"$f":"SUMIF(F49:F60,A20,I49:I60)","v":0}]
[null,"Celkem",null,null,null,null,null,null,{"$f":"SUM(I16:J20)","v":0}]
[null,"Rekapitulace daní"]
[{"$f":"ZakladDPHSni*SazbaDPH1/100","v":0},"Základ pro sníženou DPH",null,null,15,"%",{"$f":"ZakladDPHSniVypocet","v":0},null,null,{"$f":"Mena","v":"CZK"}]
[{"$f":"(A23-INT(A23))*100","v":0},"Snížená DPH ",null,null,{"$f":"SazbaDPH1","v":15},"%",{"$f":"IF(A24>50, ROUNDUP(A23, 0), ROUNDDOWN(A23, 0))","v":0},null,null,"CZK"]
[{"$f":"ZakladDPHZakl*SazbaDPH2/100","v":0},"Základ pro základní DPH",null,null,21,"%",{"$f":"ZakladDPHZaklVypocet","v":0},null,null,"CZK"]
[{"$f":"(A25-INT(A25))*100","v":0},"Základní DPH ",null,null,{"$f":"SazbaDPH2","v":21},"%",{"$f":"IF(A26>50, ROUNDUP(A25, 0), ROUNDDOWN(A25, 0))","v":0},null,null,"CZK"]
[{"$f":"ZakladDPHSni+DPHSni+ZakladDPHZakl+DPHZakl","v":0},"Zaokrouhlení",null,null,null,null,{"$f":"CenaCelkem-(ZakladDPHSni+DPHSni+ZakladDPHZakl+DPHZakl)","v":0},null,null,"CZK"]
[null,"Cena celkem bez DPH",null,null,null,null,{"$f":"ZakladDPHSniVypocet+ZakladDPHZaklVypocet","v":0},null,null,"CZK"]
[{"$f":"(A27-INT(A27))*100","v":0},"Cena celkem s DPH",null,null,null,null,{"$f":"IF(A29>50, ROUNDUP(A27, 0), ROUNDDOWN(A27, 0))","v":0},null,null,"CZK"]
[]
[]
[null,null,"v",null,null,"dne",null,{"$f":"TODAY()","v":"2020-06-08"}]
[]
[]
[null,null,null,"Za zhotovitele",null,null,null,"Za objednatele"]
[]
[null,"Rekapitulace dílčích částí"]
["#CASTI>>","Číslo","Název",null,null,{"$f":"B23","v":"Základ pro sníženou DPH"},{"$f":"B25","v":"Základ pro základní DPH"},"DPH celkem","Cena celkem","%"]
[1,"Stavba",null,null,null,{"$f":"SA102_Slepy_rozpocet!AE290","v":0},{"$f":"SA102_Slepy_rozpocet!AF290","v":0},{"$f":"(F39*SazbaDPH1/100)+(G39*SazbaDPH2/100)","v":0},{"$f":"F39+G39+H39","v":0},{"$f":"IF(CenaCelkemVypocet=0,\"\",I39/CenaCelkemVypocet*100)","v":""}]
[2,"03","OBJEKT SPECIALIZOVANÝCH VÝUKOVÝCH PROSTOR ",null,null,{"$f":"SA102_Slepy_rozpocet!AE290","v":0},{"$f":"SA102_Slepy_rozpocet!AF290","v":0},{"$f":"(F40*SazbaDPH1/100)+(G40*SazbaDPH2/100)","v":0},{"$f":"F40+G40+H40","v":0},{"$f":"IF(CenaCelkemVypocet=0,\"\",I40/CenaCelkemVypocet*100)","v":""}]
[3,"201807403","D1.1-ARCHITEKTONICKO-STAVEBNÍ ŘEŠENÍ",null,null,{"$f":"SA102_Slepy_rozpocet!AE290","v":0},{"$f":"SA102_Slepy_rozpocet!AF290","v":0},{"$f":"(F41*SazbaDPH1/100)+(G41*SazbaDPH2/100)","v":0},{"$f":"F41+G41+H41","v":0},{"$f":"IF(CenaCelkemVypocet=0,\"\",I41/CenaCelkemVypocet*100)","v":""}]
[null,"Celkem za stavbu",null,null,null,{"$f":"SUMIF(A39:A41,\"=1\",F39:F41)","v":0},{"$f":"SUMIF(A39:A41,\"=1\",G39:G41)","v":0},{"$f":"SUMIF(A39:A41,\"=1\",H39:H41)","v":0},{"$f":"SUMIF(A39:A41,\"=1\",I39:I41)","v":0},{"$f":"SUMIF(A39:A41,\"=1\",J39:J41)","v":0}]
[]
[]
[]
[null,"Rekapitulace dílů"]
[]
[null,"Číslo","Název",null,null,"Typ dílu",null,null,"Celkem","%"]
[null,"3","Svislé a kompletní konstrukce",null,null,"HSV",null,null,{"$f":"SA102_Slepy_rozpocet!G8","v":0},{"$f":"IF(I61=0,\"\",I49/I61*100)","v":""}]
[null,"61","Úpravy povrchů vnitřní",null,null,"HSV",null,null,{"$f":"SA102_Slepy_rozpocet!G63","v":0},{"$f":"IF(I61=0,\"\",I50/I61*100)","v":""}]
[null,"62","Úpravy povrchů vnější",null,null,"HSV",null,null,{"$f":"SA102_Slepy_rozpocet!G88","v":0},{"$f":"IF(I61=0,\"\",I51/I61*100)","v":""}]
[null,"64","Výplně otvorů",null,null,"HSV",null,null,{"$f":"SA102_Slepy_rozpocet!G93","v":0},{"$f":"IF(I61=0,\"\",I52/I61*100)","v":""}]
[null,"94","Lešení a stavební výtahy",null,null,"HSV",null,null,{"$f":"SA102_Slepy_rozpocet!G99","v":0},{"$f":"IF(I61=0,\"\",I53/I61*100)","v":""}]
[null,"95","Dokončovací konstrukce na pozemních stavbách",null,null,"HSV",null,null,{"$f":"SA102_Slepy_rozpocet!G121","v":0},{"$f":"IF(I61=0,\"\",I54/I61*100)","v":""}]
[null,"96","Bourání konstrukcí",null,null,"HSV",null,null,{"$f":"SA102_Slepy_rozpocet!G144","v":0},{"$f":"IF(I61=0,\"\",I55/I61*100)","v":""}]
[null,"99","Staveništní přesun hmot",null,null,"HSV",null,null,{"$f":"SA102_Slepy_rozpocet!G199","v":0},{"$f":"IF(I61=0,\"\",I56/I61*100)","v":""}]
[null,"767","Konstrukce zámečnické",null,null,"PSV",null,null,{"$f":"SA102_Slepy_rozpocet!G203","v":0},{"$f":"IF(I61=0,\"\",I57/I61*100)","v":""}]
[null,"784","Malby",null,null,"PSV",null,null,{"$f":"SA102_Slepy_rozpocet!G245","v":0},{"$f":"IF(I61=0,\"\",I58/I61*100)","v":""}]
[null,"D96","Přesuny suti a vybouraných hmot",null,null,"PSU",null,null,{"$f":"SA102_Slepy_rozpocet!G260","v":0},{"$f":"IF(I61=0,\"\",I59/I61*100)","v":""}]
[null,"VN","Vedlejší náklady",null,null,"VN",null,null,{"$f":"SA102_Slepy_rozpocet!G276","v":0},{"$f":"IF(I61=0,\"\",I60/I61*100)","v":""}]
[null,"Cena celkem",null,null,null,null,null,null,{"$f":"SUM(I49:I60)","v":0},{"$f":"SUM(J49:J60)","v":0}]

{"sheet":"SA102_Slepy_rozpocet","index":2,"n_rows":291,"n_cols":53,"rows_kept":291,"cut":false,"hidden":false,"merged":[[281,2,281,6],[283,2,283,6],[285,2,285,6],[287,2,287,6],[268,2,268,6],[270,2,270,6],[272,2,272,6],[274,2,274,6],[277,2,277,6],[279,2,279,6],[266,2,266,6],[201,2,201,6],[215,2,215,6],[225,2,225,6],[229,2,229,6],[233,2,233,6],[243,2,243,6],[253,2,253,6],[258,2,258,6],[261,2,261,6],[263,2,263,6],[264,2,264,6],[200,2,200,6],[154,2,154,6],[156,2,156,6],[159,2,159,6],[163,2,163,6],[170,2,170,6],[177,2,177,6],[184,2,184,6],[75,2,75,6],[77,2,77,6],[79,2,79,6],[82,2,82,6],[84,2,84,6],[119,2,119,6],[188,2,188,6],[190,2,190,6],[192,2,192,6],[197,2,197,6],[142,2,142,6],[86,2,86,6],[89,2,89,6],[91,2,91,6],[94,2,94,6],[97,2,97,6],[73,2,73,6],[47,2,47,6],[48,2,48,6],[50,2,50,6],[52,2,52,6],[53,2,53,6],[54,2,54,6],[55,2,55,6],[56,2,56,6],[58,2,58,6],[61,2,61,6],[64,2,64,6],[46,2,46,6],[31,2,31,6],[32,2,32,6],[34,2,34,6],[36,2,36,6],[37,2,37,6],[38,2,38,6],[39,2,39,6],[0,0,0,6],[1,2,1,6],[2,2,2,6],[3,2,3,6],[9,2,9,6],[29,2,29,6],[40,2,40,6],[42,2,42,6],[44,2,44,6],[45,2,45,6],[30,2,30,6],[11,2,11,6],[13,2,13,6],[15,2,15,6],[26,2,26,6],[28,2,28,6]]}
["Položkový soupis prací a dodávek",null,null,null,null,null,null,null,null,null,null,null,null,null,null,null,null,null,null,null,null,null,null,null,null,null,null,null,null,null,null,null,"#TypZaznamu#"]
["S:","2018074","MENDELOVA UNIVERZITA V BRNĚ - REKONSTRUKCE KLIMATIZACE OBJEKTU Q, VĚTEV c1",null,null,null,null,null,null,null,null,null,null,null,null,null,null,null,null,null,null,null,null,null,null,null,null,null,null,null,null,null,"STA"]
["O:","03","OBJEKT SPECIALIZOVANÝCH VÝUKOVÝCH PROSTOR ",null,null,null,null,null,null,null,null,null,null,null,null,null,null,null,null,null,null,null,null,null,null,null,null,null,"STA",null,null,null,"OBJ"]
["R:","201807403","D1.1-ARCHITEKTONICKO-STAVEBNÍ ŘEŠENÍ",null,null,null,null,null,null,null,null,null,null,null,null,null,null,null,null,null,null,null,null,null,null,null,null,null,null,null,null,null,"ROZ"]
[]
["P.č.","Číslo položky","Název položky","MJ","množství","cena / MJ","Celkem","Dodávka","Dodávka celk.","Montáž","Montáž celk.","DPH","cena s DPH","hmotnost / MJ","hmotnost celk.(t)","dem. hmotnost / MJ","dem. hmotnost celk.(t)","Ceník","Cen. soustava / platnost","Cenová úroveň","Nhod / MJ","Nhod celk.","Dodavatel"]
[]
["Díl:","3","Svislé a kompletní konstrukce",null,null,null,{"$f":"SUMIF(AG9:AG62,\"<>NOR\",G9:G62)","v":0},null,{"$f":"SUM(I9:I62)","v":0},null,{"$f":"SUM(K9:K62)","v":0},null,{"$f":"SUM(M9:M62)","v":0},null,{"$f":"SUM(O9:O62)","v":4.1399999999999988},null,{"$f":"SUM(Q9:Q62)","v":0},null,null,null,null,{"$f":"SUM(V9:V62)","v":341.72999999999996},null,null,null,null,null,null,null,null,null,null,"DIL"]
[1,"310235241RT2","Zazdívka otvorů o ploše do 0,0225 m2 ve zdivu nadzákladovém cihlami pálenými o tloušťce zdi do 300 mm","kus",2,null,{"$f":"ROUND(E9*F9,2)","v":0},null,{"$f":"ROUND(E9*H9,2)","v":0},null,{"$f":"ROUND(E9*J9,2)","v":0},21,{"$f":"G9*(1+L9/100)","v":0},1.2370000000000001E-2,{"$f":"ROUND(E9*N9,2)","v":0.02},0,{"$f":"ROUND(E9*P9,2)","v":0},"801-4","RTS 18/ II","RTS 18/ II",0.16069000000000003,{"$f":"ROUND(E9*U9,2)","v":0.32},null,null,null,null,null,null,null,null,null,null,"POL1_"]
[null,null,"včetně pomocného pracovního lešení",null,null,null,null,null,null,null,null,null,null,null,null,null,null,null,null,null,null,null,null,null,null,null,null,null,null,null,null,null,"SPI"]
[null,null,"střecha - odkaz I  150x150-200 mm, 2 ks : 2",null,2,null,null,null,null,null,null,null,null,null,null,null,null,null,null,null,null,null,null,null,null,null,null,null,null,null,null,null,"VV",0]
[null,null,null,null,null,null,null,null,null,null,null,null,null,null,null,null,null,null,null,null,null,null,null,null,null,null,null,null,null,null,null,null,"SPU"]
[2,"317941121R00","Osazení ocelových válcovaných nosníků na zdivu bez dodávky materiálu, výšky do 120 mm","t",1.7890000000000003E-2,null,{"$f":"ROUND(E13*F13,2)","v":0},null,{"$f":"ROUND(E13*H13,2)","v":0},null,{"$f":"ROUND(E13*J13,2)","v":0},21,{"$f":"G13*(1+L13/100)","v":0},1.9540000000000002E-2,{"$f":"ROUND(E13*N13,2)","v":0},0,{"$f":"ROUND(E13*P13,2)","v":0},"801-1","RTS 18/ II","RTS 18/ II",18.175000000000001,{"$f":"ROUND(E13*U13,2)","v":0.33},null,null,null,null,null,null,null,null,null,null,"POL1_"]
[null,null,"profilu I, nebo IE, nebo U, nebo UE, nebo L",null,null,null,null,null,null,null,null,null,null,null,null,null,null,null,null,null,null,null,null,null,null,null,null,null,null,null,null,null,"SPI"]
[null,null,"1.NP odkaz d) m.č. 1.38  L70/6-0,7m : 6,39*0,70*2*0,001*2",null,1.7890000000000003E-2,null,null,null,null,null,null,null,null,null,null,null,null,null,null,null,null,null,null,null,null,null,null,null,null,null,null,null,"VV",0]
[null,null,null,null,null,null,null,null,null,null,null,null,null,null,null,null,null,null,null,null,null,null,null,null,null,null,null,null,null,null,null,null,"SPU"]
[3,"342264051RT1","Podhledy na kovové konstrukci opláštěné deskami sádrokartonovými nosná konstrukce z profilů CD s přímým uchycením 1x deska, tloušťky 12,5 mm, standard","m2",337.36878000000002,null,{"$f":"ROUND(E17*F17,2)","v":0},null,{"$f":"ROUND(E17*H17,2)","v":0},null,{"$f":"ROUND(E17*J17,2)","v":0},21,{"$f":"G17*(1+L17/100)","v":0},1.2150000000000001E-2,{"$f":"ROUND(E17*N17,2)","v":4.0999999999999996},0,{"$f":"ROUND(E17*P17,2)","v":0},"801-1","RTS 18/ II","RTS 18/ II",1.0110000000000001,{"$f":"ROUND(E17*U17,2)","v":341.08},null,null,null,null,null,null,null,null,null,null,"POL1_"]
[null,null,"1.NP odkaz g) : ",null,null,null,null,null,null,null,null,null,null,null,null,null,null,null,null,null,null,null,null,null,null,null,null,null,null,null,null,null,"VV",0]
[null,null,"1.62 : 0,60*6,25",null,3.75,null,null,null,null,null,null,null,null,null,null,null,null,null,null,null,null,null,null,null,null,null,null,null,null,null,null,null,"VV",0]
[null,null,"1.NP odkaz k) : ",null,null,null,null,null,null,null,null,null,null,null,null,null,null,null,null,null,null,null,null,null,null,null,null,null,null,null,null,null,"VV",0]
[null,null,"1.38 : 16,11",null,16.110000000000003,null,null,null,null,null,null,null,null,null,null,null,null,null,null,null,null,null,null,null,null,null,null,null,null,null,null,null,"VV",0]
[null,null,"1.NP odkaz i) : ",null,null,null,null,null,null,null,null,null,null,null,null,null,null,null,null,null,null,null,null,null,null,null,null,null,null,null,null,null,"VV",0]
[null,null,"1.20 : 7,71*4,92*2",null,75.866400000000013,null,null,null,null,null,null,null,null,null,null,null,null,null,null,null,null,null,null,null,null,null,null,null,null,null,null,null,"VV",0]
[null,null,"6,35*5,51+(4,25+4,675)*0,5*5,51+6,35*5,51*3",null,164.54238000000001,null,null,null,null,null,null,null,null,null,null,null,null,null,null,null,null,null,null,null,null,null,null,null,null,null,null,null,"VV",0]
[null,null,"7,71*5,0*2",null,77.100000000000009,null,null,null,null,null,null,null,null,null,null,null,null,null,null,null,null,null,null,null,null,null,null,null,null,null,null,null,"VV",0]
[null,null,"Mezisoučet",null,337.36878000000002,null,null,null,null,null,null,null,null,null,null,null,null,null,null,null,null,null,null,null,null,null,null,null,null,null,null,null,"VV",1]
[null,null,null,null,null,null,null,null,null,null,null,null,null,null,null,null,null,null,null,null,null,null,null,null,null,null,null,null,null,null,null,null,"SPU"]
[4,"34226PC01","Provedení RD1 - revizních dvířek z plného podhledu s vyloučením kovového rámu","m2    ",4,null,{"$f":"ROUND(E28*F28,2)","v":0},null,{"$f":"ROUND(E28*H28,2)","v":0},null,{"$f":"ROUND(E28*J28,2)","v":0},21,{"$f":"G28*(1+L28/100)","v":0},0,{"$f":"ROUND(E28*N28,2)","v":0},0,{"$f":"ROUND(E28*P28,2)","v":0},null,"Vlastní","Indiv",0,{"$f":"ROUND(E28*U28,2)","v":0},null,null,null,null,null,null,null,null,null,null,"POL1_"]
[null,null,"REVIZNÍ DVÍŘKA",null,null,null,null,null,null,null,null,null,null,null,null,null,null,null,null,null,null,null,null,null,null,null,null,null,null,null,null,null,"POP"]
[null,null,"RD1 - 1100x650 mm - 4ks",null,null,null,null,null,null,null,null,null,null,null,null,null,null,null,null,null,null,null,null,null,null,null,null,null,null,null,null,null,"POP"]
[null,null,"RD2 - 600x400 mm - 8 ks",null,null,null,null,null,null,null,null,null,null,null,null,null,null,null,null,null,null,null,null,null,null,null,null,null,null,null,null,null,"POP"]
[null,null,"RD3 - 300x300 mm - 11 ks",null,null,null,null,null,null,null,null,null,null,null,null,null,null,null,null,null,null,null,null,null,null,null,null,null,null,null,null,null,"POP"]
[null,null,"RD4 - 650x610 mm - 1 ks",null,null,null,null,null,null,null,null,null,null,null,null,null,null,null,null,null,null,null,null,null,null,null,null,null,null,null,null,null,"POP"]
[null,null,"RD1  1100x650 mm : 4",null,4,null,null,null,null,null,null,null,null,null,null,null,null,null,null,null,null,null,null,null,null,null,null,null,null,null,null,null,"VV",0]
[null,null,null,null,null,null,null,null,null,null,null,null,null,null,null,null,null,null,null,null,null,null,null,null,null,null,null,null,null,null,null,null,"SPU"]
[5,"34226PC02","Provedení RD2 - revizních dvířek z plného podhledu s vyloučením kovového rámu","m2    ",12,null,{"$f":"ROUND(E36*F36,2)","v":0},null,{"$f":"ROUND(E36*H36,2)","v":0},null,{"$f":"ROUND(E36*J36,2)","v":0},21,{"$f":"G36*(1+L36/100)","v":0},0,{"$f":"ROUND(E36*N36,2)","v":0},0,{"$f":"ROUND(E36*P36,2)","v":0},null,"Vlastní","Indiv",0,{"$f":"ROUND(E36*U36,2)","v":0},null,null,null,null,null,null,null,null,null,null,"POL1_"]
[null,null,"REVIZNÍ DVÍŘKA",null,null,null,null,null,null,null,null,null,null,null,null,null,null,null,null,null,null,null,null,null,null,null,null,null,null,null,null,null,"POP"]
[null,null,"RD1 - 1100x650 mm - 4ks",null,null,null,null,null,null,null,null,null,null,null,null,null,null,null,null,null,null,null,null,null,null,null,null,null,null,null,null,null,"POP"]
[null,null,"RD2 - 600x400 mm - 8 ks",null,null,null,null,null,null,null,null,null,null,null,null,null,null,null,null,null,null,null,null,null,null,null,null,null,null,null,null,null,"POP"]
[null,null,"RD3 - 300x300 mm - 11 ks",null,null,null,null,null,null,null,null,null,null,null,null,null,null,null,null,null,null,null,null,null,null,null,null,null,null,null,null,null,"POP"]
[null,null,"RD4 - 650x610 mm - 1 ks",null,null,null,null,null,null,null,null,null,null,null,null,null,null,null,null,null,null,null,null,null,null,null,null,null,null,null,null,null,"POP"]
[null,null,"RD2    600x400 mm : 12",null,12,null,null,null,null,null,null,null,null,null,null,null,null,null,null,null,null,null,null,null,null,null,null,null,null,null,null,null,"VV",0]
[null,null,null,null,null,null,null,null,null,null,null,null,null,null,null,null,null,null,null,null,null,null,null,null,null,null,null,null,null,null,null,null,"SPU"]
[6,"34226PC03","Provedení RD3 -  revizních dvířek z plného podhledu s vyloučením kovového rámu","m2    ",7,null,{"$f":"ROUND(E44*F44,2)","v":0},null,{"$f":"ROUND(E44*H44,2)","v":0},null,{"$f":"ROUND(E44*J44,2)","v":0},21,{"$f":"G44*(1+L44/100)","v":0},0,{"$f":"ROUND(E44*N44,2)","v":0},0,{"$f":"ROUND(E44*P44,2)","v":0},null,"Vlastní","Indiv",0,{"$f":"ROUND(E44*U44,2)","v":0},null,null,null,null,null,null,null,null,null,null,"POL1_"]
[null,null,"REVIZNÍ DVÍŘKA",null,null,null,null,null,null,null,null,null,null,null,null,null,null,null,null,null,null,null,null,null,null,null,null,null,null,null,null,null,"POP"]
[null,null,"RD1 - 1100x650 mm - 4ks",null,null,null,null,null,null,null,null,null,null,null,null,null,null,null,null,null,null,null,null,null,null,null,null,null,null,null,null,null,"POP"]
[null,null,"RD2 - 600x400 mm - 8 ks",null,null,null,null,null,null,null,null,null,null,null,null,null,null,null,null,null,null,null,null,null,null,null,null,null,null,null,null,null,"POP"]
[null,null,"RD3 - 300x300 mm - 11 ks",null,null,null,null,null,null,null,null,null,null,null,null,null,null,null,null,null,null,null,null,null,null,null,null,null,null,null,null,null,"POP"]
[null,null,"RD4 - 650x610 mm - 1 ks",null,null,null,null,null,null,null,null,null,null,null,null,null,null,null,null,null,null,null,null,null,null,null,null,null,null,null,null,null,"POP"]
[null,null,"RD3    300x300 mm : 7",null,7,null,null,null,null,null,null,null,null,null,null,null,null,null,null,null,null,null,null,null,null,null,null,null,null,null,null,null,"VV",0]
[null,null,null,null,null,null,null,null,null,null,null,null,null,null,null,null,null,null,null,null,null,null,null,null,null,null,null,null,null,null,null,null,"SPU"]
[7,"34226PC04","Provedení RD4 - revizních dvířek z plného podhledu s vyloučením kovového rámu","m2    ",1,null,{"$f":"ROUND(E52*F52,2)","v":0},null,{"$f":"ROUND(E52*H52,2)","v":0},null,{"$f":"ROUND(E52*J52,2)","v":0},21,{"$f":"G52*(1+L52/100)","v":0},0,{"$f":"ROUND(E52*N52,2)","v":0},0,{"$f":"ROUND(E52*P52,2)","v":0},null,"Vlastní","Indiv",0,{"$f":"ROUND(E52*U52,2)","v":0},null,null,null,null,null,null,null,null,null,null,"POL1_"]
[null,null,"REVIZNÍ DVÍŘKA",null,null,null,null,null,null,null,null,null,null,null,null,null,null,null,null,null,null,null,null,null,null,null,null,null,null,null,null,null,"POP"]
[null,null,"RD1 - 1100x650 mm - 4ks",null,null,null,null,null,null,null,null,null,null,null,null,null,null,null,null,null,null,null,null,null,null,null,null,null,null,null,null,null,"POP"]
[null,null,"RD2 - 600x400 mm - 8 ks",null,null,null,null,null,null,null,null,null,null,null,null,null,null,null,null,null,null,null,null,null,null,null,null,null,null,null,null,null,"POP"]
[null,null,"RD3 - 300x300 mm - 11 ks",null,null,null,null,null,null,null,null,null,null,null,null,null,null,null,null,null,null,null,null,null,null,null,null,null,null,null,null,null,"POP"]
[null,null,"RD4 - 650x610 mm - 1 ks",null,null,null,null,null,null,null,null,null,null,null,null,null,null,null,null,null,null,null,null,null,null,null,null,null,null,null,null,null,"POP"]
[null,null,"RD4    650x610 mm : 1",null,1,null,null,null,null,null,null,null,null,null,null,null,null,null,null,null,null,null,null,null,null,null,null,null,null,null,null,null,"VV",0]
[null,null,null,null,null,null,null,null,null,null,null,null,null,null,null,null,null,null,null,null,null,null,null,null,null,null,null,null,null,null,null,null,"SPU"]
[8,"13331762R","tyč ocelová  L (úhelník) válcovaná za tepla 11375 (S 235JR); rovnoramenná; tl = 6,00 mm; a = 70,0 mm; b = 70,0 mm","t",1.932E-2,null,{"$f":"ROUND(E60*F60,2)","v":0},null,{"$f":"ROUND(E60*H60,2)","v":0},null,{"$f":"ROUND(E60*J60,2)","v":0},21,{"$f":"G60*(1+L60/100)","v":0},1,{"$f":"ROUND(E60*N60,2)","v":0.02},0,{"$f":"ROUND(E60*P60,2)","v":0},"SPCM","RTS 18/ II","RTS 18/ II",0,{"$f":"ROUND(E60*U60,2)","v":0},null,null,null,null,null,null,null,null,null,null,"POL3_"]
[null,null,"1.NP odkaz d) m.č. 1.38  L70/6-0,7m : 6,39*0,70*2*0,00108*2",null,1.932E-2,null,null,null,null,null,null,null,null,null,null,null,null,null,null,null,null,null,null,null,null,null,null,null,null,null,null,null,"VV",0]
[null,null,null,null,null,null,null,null,null,null,null,null,null,null,null,null,null,null,null,null,null,null,null,null,null,null,null,null,null,null,null,null,"SPU"]
["Díl:","61","Úpravy povrchů vnitřní",null,null,null,{"$f":"SUMIF(AG64:AG87,\"<>NOR\",G64:G87)","v":0},null,{"$f":"SUM(I64:I87)","v":0},null,{"$f":"SUM(K64:K87)","v":0},null,{"$f":"SUM(M64:M87)","v":0},null,{"$f":"SUM(O64:O87)","v":0.27},null,{"$f":"SUM(Q64:Q87)","v":0},null,null,null,null,{"$f":"SUM(V64:V87)","v":10.87},null,null,null,null,null,null,null,null,null,null,"DIL"]
[9,"612401191RT2","Omítky malých ploch vnitřních stěn do 0,09 m2, vápennou štukovou omítkou","kus",19,null,{"$f":"ROUND(E64*F64,2)","v":0},null,{"$f":"ROUND(E64*H64,2)","v":0},null,{"$f":"ROUND(E64*J64,2)","v":0},21,{"$f":"G64*(1+L64/100)","v":0},3.2000000000000002E-3,{"$f":"ROUND(E64*N64,2)","v":0.06},0,{"$f":"ROUND(E64*P64,2)","v":0},"801-4","RTS 18/ II","RTS 18/ II",0.22498000000000001,{"$f":"ROUND(E64*U64,2)","v":4.2699999999999996},null,null,null,null,null,null,null,null,null,null,"POL1_"]
[null,null,"jakoukoliv maltou, z pomocného pracovního lešení o výšce podlahy do 1900 mm a pro zatížení do 1,5 kPa,",null,null,null,null,null,null,null,null,null,null,null,null,null,null,null,null,null,null,null,null,null,null,null,null,null,null,null,null,null,"SPI",null,null,null,null,null,null,null,null,null,null,null,null,null,null,null,null,null,null,null,{"$f":"C65","v":"jakoukoliv maltou, z pomocného pracovního lešení o výšce podlahy do 1900 mm a pro zatížení do 1,5 kPa,"}]
[null,null,"střecha - odkaz I  150x150-200 mm, 2 ks : 2*2",null,4,null,null,null,null,null,null,null,null,null,null,null,null,null,null,null,null,null,null,null,null,null,null,null,null,null,null,null,"VV",0]
[null,null,"Mezisoučet",null,4,null,null,null,null,null,null,null,null,null,null,null,null,null,null,null,null,null,null,null,null,null,null,null,null,null,null,null,"VV",1]
[null,null,"1.PP - odkaz a) : 2",null,2,null,null,null,null,null,null,null,null,null,null,null,null,null,null,null,null,null,null,null,null,null,null,null,null,null,null,null,"VV",0]
[null,null,"1.NP - odkaz a) : 5*2",null,10,null,null,null,null,null,null,null,null,null,null,null,null,null,null,null,null,null,null,null,null,null,null,null,null,null,null,null,"VV",0]
[null,null,"Mezisoučet",null,12,null,null,null,null,null,null,null,null,null,null,null,null,null,null,null,null,null,null,null,null,null,null,null,null,null,null,null,"VV",1]
[null,null,"1.PP - odkaz c) : 1",null,1,null,null,null,null,null,null,null,null,null,null,null,null,null,null,null,null,null,null,null,null,null,null,null,null,null,null,null,"VV",0]
[null,null,"1.NP- odkaz c) : 2",null,2,null,null,null,null,null,null,null,null,null,null,null,null,null,null,null,null,null,null,null,null,null,null,null,null,null,null,null,"VV",0]
[null,null,"Mezisoučet",null,3,null,null,null,null,null,null,null,null,null,null,null,null,null,null,null,null,null,null,null,null,null,null,null,null,null,null,null,"VV",1]
[null,null,null,null,null,null,null,null,null,null,null,null,null,null,null,null,null,null,null,null,null,null,null,null,null,null,null,null,null,null,null,null,"SPU"]
[10,"612401291RT2","Omítky malých ploch vnitřních stěn přes 0,09 do 0,25 m2, vápennou štukovou omítkou","kus",8,null,{"$f":"ROUND(E75*F75,2)","v":0},null,{"$f":"ROUND(E75*H75,2)","v":0},null,{"$f":"ROUND(E75*J75,2)","v":0},21,{"$f":"G75*(1+L75/100)","v":0},8.6700000000000006E-3,{"$f":"ROUND(E75*N75,2)","v":7.0000000000000007E-2},0,{"$f":"ROUND(E75*P75,2)","v":0},"801-4","RTS 18/ II","RTS 18/ II",0.35974,{"$f":"ROUND(E75*U75,2)","v":2.88},null,null,null,null,null,null,null,null,null,null,"POL1_"]
[null,null,"jakoukoliv maltou, z pomocného pracovního lešení o výšce podlahy do 1900 mm a pro zatížení do 1,5 kPa,",null,null,null,null,null,null,null,null,null,null,null,null,null,null,null,null,null,null,null,null,null,null,null,null,null,null,null,null,null,"SPI",null,null,null,null,null,null,null,null,null,null,null,null,null,null,null,null,null,null,null,{"$f":"C76","v":"jakoukoliv maltou, z pomocného pracovního lešení o výšce podlahy do 1900 mm a pro zatížení do 1,5 kPa,"}]
[null,null,"odkaz d) : 4*2",null,8,null,null,null,null,null,null,null,null,null,null,null,null,null,null,null,null,null,null,null,null,null,null,null,null,null,null,null,"VV",0]
[null,null,null,null,null,null,null,null,null,null,null,null,null,null,null,null,null,null,null,null,null,null,null,null,null,null,null,null,null,null,null,null,"SPU"]
[11,"612401391RT2","Omítky malých ploch vnitřních stěn přes 0,25 do 1 m2, vápennou štukovou omítkou","kus",4,null,{"$f":"ROUND(E79*F79,2)","v":0},null,{"$f":"ROUND(E79*H79,2)","v":0},null,{"$f":"ROUND(E79*J79,2)","v":0},21,{"$f":"G79*(1+L79/100)","v":0},3.5620000000000006E-2,{"$f":"ROUND(E79*N79,2)","v":0.14000000000000001},0,{"$f":"ROUND(E79*P79,2)","v":0},"801-4","RTS 18/ II","RTS 18/ II",0.8829300000000001,{"$f":"ROUND(E79*U79,2)","v":3.53},null,null,null,null,null,null,null,null,null,null,"POL1_"]
[null,null,"jakoukoliv maltou, z pomocného pracovního lešení o výšce podlahy do 1900 mm a pro zatížení do 1,5 kPa,",null,null,null,null,null,null,null,null,null,null,null,null,null,null,null,null,null,null,null,null,null,null,null,null,null,null,null,null,null,"SPI",null,null,null,null,null,null,null,null,null,null,null,null,null,null,null,null,null,null,null,{"$f":"C80","v":"jakoukoliv maltou, z pomocného pracovního lešení o výšce podlahy do 1900 mm a pro zatížení do 1,5 kPa,"}]
[null,null,"1.NP odkaz e) : 2",null,2,null,null,null,null,null,null,null,null,null,null,null,null,null,null,null,null,null,null,null,null,null,null,null,null,null,null,null,"VV",0]
[null,null,"odkaz e1) : 2",null,2,null,null,null,null,null,null,null,null,null,null,null,null,null,null,null,null,null,null,null,null,null,null,null,null,null,null,null,"VV",0]
[null,null,null,null,null,null,null,null,null,null,null,null,null,null,null,null,null,null,null,null,null,null,null,null,null,null,null,null,null,null,null,null,"SPU"]
[12,"612481113R00","Potažení vnitřních stěn pletivem sklotextilním , s vypnutím","m2",0.81,null,{"$f":"ROUND(E84*F84,2)","v":0},null,{"$f":"ROUND(E84*H84,2)","v":0},null,{"$f":"ROUND(E84*J84,2)","v":0},21,{"$f":"G84*(1+L84/100)","v":0},3.4000000000000002E-4,{"$f":"ROUND(E84*N84,2)","v":0},0,{"$f":"ROUND(E84*P84,2)","v":0},"801-1","RTS 18/ II","RTS 18/ II",0.24000000000000002,{"$f":"ROUND(E84*U84,2)","v":0.19},null,null,null,null,null,null,null,null,null,null,"POL1_"]
[null,null,"v ploše nebo pruzích na plném podkladu nebo na podkladu s dutinami (pod omítku)",null,null,null,null,null,null,null,null,null,null,null,null,null,null,null,null,null,null,null,null,null,null,null,null,null,null,null,null,null,"SPI"]
[null,null,"odkaz d) : (0,90*0,15*3)*2",null,0.81,null,null,null,null,null,null,null,null,null,null,null,null,null,null,null,null,null,null,null,null,null,null,null,null,null,null,null,"VV",0]
[null,null,null,null,null,null,null,null,null,null,null,null,null,null,null,null,null,null,null,null,null,null,null,null,null,null,null,null,null,null,null,null,"SPU"]
["Díl:","62","Úpravy povrchů vnější",null,null,null,{"$f":"SUMIF(AG89:AG92,\"<>NOR\",G89:G92)","v":0},null,{"$f":"SUM(I89:I92)","v":0},null,{"$f":"SUM(K89:K92)","v":0},null,{"$f":"SUM(M89:M92)","v":0},null,{"$f":"SUM(O89:O92)","v":0.01},null,{"$f":"SUM(Q89:Q92)","v":0},null,null,null,null,{"$f":"SUM(V89:V92)","v":0.39},null,null,null,null,null,null,null,null,null,null,"DIL"]
[13,"622477128R00","Oprava vnějších hladkých omítek stěn složitost fasády I.-II., množství opravované plochy 66 až 80 %","m2",0.5,null,{"$f":"ROUND(E89*F89,2)","v":0},null,{"$f":"ROUND(E89*H89,2)","v":0},null,{"$f":"ROUND(E89*J89,2)","v":0},21,{"$f":"G89*(1+L89/100)","v":0},1.932E-2,{"$f":"ROUND(E89*N89,2)","v":0.01},0,{"$f":"ROUND(E89*P89,2)","v":0},"801-4","RTS 18/ II","RTS 18/ II",0.78633000000000008,{"$f":"ROUND(E89*U89,2)","v":0.39},null,null,null,null,null,null,null,null,null,null,"POL1_"]
[null,null,"postřik vodou a jednovrstvé doplnění omítky",null,null,null,null,null,null,null,null,null,null,null,null,null,null,null,null,null,null,null,null,null,null,null,null,null,null,null,null,null,"SPI"]
[null,null,"střecha - odkaz I  150x150-200 mm, 2 ks : 0,5*0,5*2",null,0.5,null,null,null,null,null,null,null,null,null,null,null,null,null,null,null,null,null,null,null,null,null,null,null,null,null,null,null,"VV",0]
[null,null,null,null,null,null,null,null,null,null,null,null,null,null,null,null,null,null,null,null,null,null,null,null,null,null,null,null,null,null,null,null,"SPU"]
["Díl:","64","Výplně otvorů",null,null,null,{"$f":"SUMIF(AG94:AG98,\"<>NOR\",G94:G98)","v":0},null,{"$f":"SUM(I94:I98)","v":0},null,{"$f":"SUM(K94:K98)","v":0},null,{"$f":"SUM(M94:M98)","v":0},null,{"$f":"SUM(O94:O98)","v":0.05},null,{"$f":"SUM(Q94:Q98)","v":0},null,null,null,null,{"$f":"SUM(V94:V98)","v":0.9},null,null,null,null,null,null,null,null,null,null,"DIL"]
[14,"641941111R00","Osazení rámů okenních ocelových o ploše do 1 m2","kus",2,null,{"$f":"ROUND(E94*F94,2)","v":0},null,{"$f":"ROUND(E94*H94,2)","v":0},null,{"$f":"ROUND(E94*J94,2)","v":0},21,{"$f":"G94*(1+L94/100)","v":0},2.5260000000000001E-2,{"$f":"ROUND(E94*N94,2)","v":0.05},0,{"$f":"ROUND(E94*P94,2)","v":0},"801-1","RTS 18/ II","RTS 18/ II",0.45,{"$f":"ROUND(E94*U94,2)","v":0.9},null,null,null,null,null,null,null,null,null,null,"POL1_"]
[null,null,"na jakoukoliv cementovou maltu. Včetně kotvení do zdiva.",null,null,null,null,null,null,null,null,null,null,null,null,null,null,null,null,null,null,null,null,null,null,null,null,null,null,null,null,null,"SPI"]
[null,null,"1.NP odkaz e) : 1",null,1,null,null,null,null,null,null,null,null,null,null,null,null,null,null,null,null,null,null,null,null,null,null,null,null,null,null,null,"VV",0]
[null,null,"odkaz e1) : 1",null,1,null,null,null,null,null,null,null,null,null,null,null,null,null,null,null,null,null,null,null,null,null,null,null,null,null,null,null,"VV",0]
[null,null,null,null,null,null,null,null,null,null,null,null,null,null,null,null,null,null,null,null,null,null,null,null,null,null,null,null,null,null,null,null,"SPU"]
["Díl:","94","Lešení a stavební výtahy",null,null,null,{"$f":"SUMIF(AG100:AG120,\"<>NOR\",G100:G120)","v":0},null,{"$f":"SUM(I100:I120)","v":0},null,{"$f":"SUM(K100:K120)","v":0},null,{"$f":"SUM(M100:M120)","v":0},null,{"$f":"SUM(O100:O120)","v":0.84},null,{"$f":"SUM(Q100:Q120)","v":0},null,null,null,null,{"$f":"SUM(V100:V120)","v":122.71},null,null,null,null,null,null,null,null,null,null,"DIL"]
[15,"941955001R00","Lešení lehké pracovní pomocné pomocné, o výšce lešeňové podlahy do 1,2 m","m2",693.26100000000008,null,{"$f":"ROUND(E100*F100,2)","v":0},null,{"$f":"ROUND(E100*H100,2)","v":0},null,{"$f":"ROUND(E100*J100,2)","v":0},21,{"$f":"G100*(1+L100/100)","v":0},1.2100000000000001E-3,{"$f":"ROUND(E100*N100,2)","v":0.84},0,{"$f":"ROUND(E100*P100,2)","v":0},"800-3","RTS 18/ II","RTS 18/ II",0.17700000000000002,{"$f":"ROUND(E100*U100,2)","v":122.71},null,null,null,null,null,null,null,null,null,null,"POL1_"]
[null,null,"1.NP odkaz g) : ",null,null,null,null,null,null,null,null,null,null,null,null,null,null,null,null,null,null,null,null,null,null,null,null,null,null,null,null,null,"VV",0]
[null,null,"1.62 : 1,20*6,25",null,7.5,null,null,null,null,null,null,null,null,null,null,null,null,null,null,null,null,null,null,null,null,null,null,null,null,null,null,null,"VV",0]
[null,null,"1.NP odkaz k) : ",null,null,null,null,null,null,null,null,null,null,null,null,null,null,null,null,null,null,null,null,null,null,null,null,null,null,null,null,null,"VV",0]
[null,null,"1.38 : 16,11",null,16.110000000000003,null,null,null,null,null,null,null,null,null,null,null,null,null,null,null,null,null,null,null,null,null,null,null,null,null,null,null,"VV",0]
[null,null,"1.NP odkaz i) : ",null,null,null,null,null,null,null,null,null,null,null,null,null,null,null,null,null,null,null,null,null,null,null,null,null,null,null,null,null,"VV",0]
[null,null,"1.20 : 4,92*(16,9+1,20*2)",null,94.956000000000003,null,null,null,null,null,null,null,null,null,null,null,null,null,null,null,null,null,null,null,null,null,null,null,null,null,null,null,"VV",0]
[null,null,"(7,35+1,2)*(36,5+1,2*2)",null,332.59500000000003,null,null,null,null,null,null,null,null,null,null,null,null,null,null,null,null,null,null,null,null,null,null,null,null,null,null,null,"VV",0]
[null,null,"5,0*(16,9+1,20*2)",null,96.5,null,null,null,null,null,null,null,null,null,null,null,null,null,null,null,null,null,null,null,null,null,null,null,null,null,null,null,"VV",0]
[null,null,"Mezisoučet",null,547.66100000000006,null,null,null,null,null,null,null,null,null,null,null,null,null,null,null,null,null,null,null,null,null,null,null,null,null,null,null,"VV",1]
[null,null,"pro prosvětlovací kazety 1.78 : 22,0*1,20",null,26.400000000000002,null,null,null,null,null,null,null,null,null,null,null,null,null,null,null,null,null,null,null,null,null,null,null,null,null,null,null,"VV",0]
[null,null,"kazetový strop : ",null,null,null,null,null,null,null,null,null,null,null,null,null,null,null,null,null,null,null,null,null,null,null,null,null,null,null,null,null,"VV",0]
[null,null,"1.PP - odkaz f) : ",null,null,null,null,null,null,null,null,null,null,null,null,null,null,null,null,null,null,null,null,null,null,null,null,null,null,null,null,null,"VV",0]
[null,null,"01.47 : 1,90*14,1",null,26.790000000000003,null,null,null,null,null,null,null,null,null,null,null,null,null,null,null,null,null,null,null,null,null,null,null,null,null,null,null,"VV",0]
[null,null,"01.71, 01.72, 01.47 : 48,50*1,50+2,40*0,9",null,74.910000000000011,null,null,null,null,null,null,null,null,null,null,null,null,null,null,null,null,null,null,null,null,null,null,null,null,null,null,null,"VV",0]
[null,null,"01.81 : 5,0*1,50",null,7.5,null,null,null,null,null,null,null,null,null,null,null,null,null,null,null,null,null,null,null,null,null,null,null,null,null,null,null,"VV",0]
[null,null,"Mezisoučet",null,135.60000000000002,null,null,null,null,null,null,null,null,null,null,null,null,null,null,null,null,null,null,null,null,null,null,null,null,null,null,null,"VV",1]
[null,null,"1.NP - odkaz f) : ",null,null,null,null,null,null,null,null,null,null,null,null,null,null,null,null,null,null,null,null,null,null,null,null,null,null,null,null,null,"VV",0]
[null,null,"1.77 : 5,0*2,0",null,10,null,null,null,null,null,null,null,null,null,null,null,null,null,null,null,null,null,null,null,null,null,null,null,null,null,null,null,"VV",0]
[null,null,"Mezisoučet",null,10,null,null,null,null,null,null,null,null,null,null,null,null,null,null,null,null,null,null,null,null,null,null,null,null,null,null,null,"VV",1]
[null,null,null,null,null,null,null,null,null,null,null,null,null,null,null,null,null,null,null,null,null,null,null,null,null,null,null,null,null,null,null,null,"SPU"]
["Díl:","95","Dokončovací konstrukce na pozemních stavbách",null,null,null,{"$f":"SUMIF(AG122:AG143,\"<>NOR\",G122:G143)","v":0},null,{"$f":"SUM(I122:I143)","v":0},null,{"$f":"SUM(K122:K143)","v":0},null,{"$f":"SUM(M122:M143)","v":0},null,{"$f":"SUM(O122:O143)","v":0.03},null,{"$f":"SUM(Q122:Q143)","v":0},null,null,null,null,{"$f":"SUM(V122:V143)","v":213.52},null,null,null,null,null,null,null,null,null,null,"DIL"]
[16,"952901111R00","Vyčištění budov a ostatních objektů budov bytové nebo občanské výstavby - zametení a umytí podlah, dlažeb, obkladů, schodů v místnostech, chodbách a schodištích, vyčištění a umytí oken, dveří s rámy, zárubněmi, umytí a vyčištění jiných zasklených a natíraných ploch a zařizovacích předmětů před předáním do užívání světlá výška podlaží do 4 m","m2",693.26100000000008,null,{"$f":"ROUND(E122*F122,2)","v":0},null,{"$f":"ROUND(E122*H122,2)","v":0},null,{"$f":"ROUND(E122*J122,2)","v":0},21,{"$f":"G122*(1+L122/100)","v":0},4.0000000000000003E-5,{"$f":"ROUND(E122*N122,2)","v":0.03},0,{"$f":"ROUND(E122*P122,2)","v":0},"801-1","RTS 18/ II","RTS 18/ II",0.30800000000000005,{"$f":"ROUND(E122*U122,2)","v":213.52},null,null,null,null,null,null,null,null,null,null,"POL1_"]
[null,null,"po skončení prací před předáním do užívání : ",null,null,null,null,null,null,null,null,null,null,null,null,null,null,null,null,null,null,null,null,null,null,null,null,null,null,null,null,null,"VV",0]
[null,null,"1.NP odkaz g) : ",null,null,null,null,null,null,null,null,null,null,null,null,null,null,null,null,null,null,null,null,null,null,null,null,null,null,null,null,null,"VV",0]
[null,null,"1.62 : 1,20*6,25",null,7.5,null,null,null,null,null,null,null,null,null,null,null,null,null,null,null,null,null,null,null,null,null,null,null,null,null,null,null,"VV",0]
[null,null,"1.NP odkaz k) : ",null,null,null,null,null,null,null,null,null,null,null,null,null,null,null,null,null,null,null,null,null,null,null,null,null,null,null,null,null,"VV",0]
[null,null,"1.38 : 16,11",null,16.110000000000003,null,null,null,null,null,null,null,null,null,null,null,null,null,null,null,null,null,null,null,null,null,null,null,null,null,null,null,"VV",0]
[null,null,"1.NP odkaz i) : ",null,null,null,null,null,null,null,null,null,null,null,null,null,null,null,null,null,null,null,null,null,null,null,null,null,null,null,null,null,"VV",0]
[null,null,"1.20 : 4,92*(16,9+1,20*2)",null,94.956000000000003,null,null,null,null,null,null,null,null,null,null,null,null,null,null,null,null,null,null,null,null,null,null,null,null,null,null,null,"VV",0]
[null,null,"(7,35+1,2)*(36,5+1,2*2)",null,332.59500000000003,null,null,null,null,null,null,null,null,null,null,null,null,null,null,null,null,null,null,null,null,null,null,null,null,null,null,null,"VV",0]
[null,null,"5,0*(16,9+1,20*2)",null,96.5,null,null,null,null,null,null,null,null,null,null,null,null,null,null,null,null,null,null,null,null,null,null,null,null,null,null,null,"VV",0]
[null,null,"Mezisoučet",null,547.66100000000006,null,null,null,null,null,null,null,null,null,null,null,null,null,null,null,null,null,null,null,null,null,null,null,null,null,null,null,"VV",1]
[null,null,"pro prosvětlovací kazety 1.78 : 22,0*1,20",null,26.400000000000002,null,null,null,null,null,null,null,null,null,null,null,null,null,null,null,null,null,null,null,null,null,null,null,null,null,null,null,"VV",0]
[null,null,"kazetový strop : ",null,null,null,null,null,null,null,null,null,null,null,null,null,null,null,null,null,null,null,null,null,null,null,null,null,null,null,null,null,"VV",0]
[null,null,"1.PP - odkaz f) : ",null,null,null,null,null,null,null,null,null,null,null,null,null,null,null,null,null,null,null,null,null,null,null,null,null,null,null,null,null,"VV",0]
[null,null,"01.47 : 1,90*14,1",null,26.790000000000003,null,null,null,null,null,null,null,null,null,null,null,null,null,null,null,null,null,null,null,null,null,null,null,null,null,null,null,"VV",0]
[null,null,"01.71, 01.72, 01.47 : 48,50*1,50+2,40*0,9",null,74.910000000000011,null,null,null,null,null,null,null,null,null,null,null,null,null,null,null,null,null,null,null,null,null,null,null,null,null,null,null,"VV",0]
[null,null,"01.81 : 5,0*1,50",null,7.5,null,null,null,null,null,null,null,null,null,null,null,null,null,null,null,null,null,null,null,null,null,null,null,null,null,null,null,"VV",0]
[null,null,"Mezisoučet",null,135.60000000000002,null,null,null,null,null,null,null,null,null,null,null,null,null,null,null,null,null,null,null,null,null,null,null,null,null,null,null,"VV",1]
[null,null,"1.NP - odkaz f) : ",null,null,null,null,null,null,null,null,null,null,null,null,null,null,null,null,null,null,null,null,null,null,null,null,null,null,null,null,null,"VV",0]
[null,null,"1.77 : 5,0*2,0",null,10,null,null,null,null,null,null,null,null,null,null,null,null,null,null,null,null,null,null,null,null,null,null,null,null,null,null,null,"VV",0]
[null,null,"Mezisoučet",null,10,null,null,null,null,null,null,null,null,null,null,null,null,null,null,null,null,null,null,null,null,null,null,null,null,null,null,null,"VV",1]
[null,null,null,null,null,null,null,null,null,null,null,null,null,null,null,null,null,null,null,null,null,null,null,null,null,null,null,null,null,null,null,null,"SPU"]
["Díl:","96","Bourání konstrukcí",null,null,null,{"$f":"SUMIF(AG145:AG198,\"<>NOR\",G145:G198)","v":0},null,{"$f":"SUM(I145:I198)","v":0},null,{"$f":"SUM(K145:K198)","v":0},null,{"$f":"SUM(M145:M198)","v":0},null,{"$f":"SUM(O145:O198)","v":0.11},null,{"$f":"SUM(Q145:Q198)","v":4.3},null,null,null,null,{"$f":"SUM(V145:V198)","v":135.04000000000002},null,null,null,null,null,null,null,null,null,null,"DIL"]
[17,"963016111R00","Demontáž sádrokartonových a sádrovláknitých podhledů z desek bez minerální izolace, na jednoduché ocelové konstrukci, 1x opláštěné tl. 12,5 mm","m2",337.36878000000002,null,{"$f":"ROUND(E145*F145,2)","v":0},null,{"$f":"ROUND(E145*H145,2)","v":0},null,{"$f":"ROUND(E145*J145,2)","v":0},21,{"$f":"G145*(1+L145/100)","v":0},3.3000000000000005E-4,{"$f":"ROUND(E145*N145,2)","v":0.11},1.183E-2,{"$f":"ROUND(E145*P145,2)","v":3.99},"801-3","RTS 18/ II","RTS 18/ II",0.34600000000000003,{"$f":"ROUND(E145*U145,2)","v":116.73},null,null,null,null,null,null,null,null,null,null,"POL1_"]
[null,null,"1.NP odkaz g) : ",null,null,null,null,null,null,null,null,null,null,null,null,null,null,null,null,null,null,null,null,null,null,null,null,null,null,null,null,null,"VV",0]
[null,null,"1.62 : 0,60*6,25",null,3.75,null,null,null,null,null,null,null,null,null,null,null,null,null,null,null,null,null,null,null,null,null,null,null,null,null,null,null,"VV",0]
[null,null,"1.NP odkaz k) : ",null,null,null,null,null,null,null,null,null,null,null,null,null,null,null,null,null,null,null,null,null,null,null,null,null,null,null,null,null,"VV",0]
[null,null,"1.38 : 16,11",null,16.110000000000003,null,null,null,null,null,null,null,null,null,null,null,null,null,null,null,null,null,null,null,null,null,null,null,null,null,null,null,"VV",0]
[null,null,"1.NP odkaz i) : ",null,null,null,null,null,null,null,null,null,null,null,null,null,null,null,null,null,null,null,null,null,null,null,null,null,null,null,null,null,"VV",0]
[null,null,"1.20 : 7,71*4,92*2",null,75.866400000000013,null,null,null,null,null,null,null,null,null,null,null,null,null,null,null,null,null,null,null,null,null,null,null,null,null,null,null,"VV",0]
[null,null,"6,35*5,51+(4,25+4,675)*0,5*5,51+6,35*5,51*3",null,164.54238000000001,null,null,null,null,null,null,null,null,null,null,null,null,null,null,null,null,null,null,null,null,null,null,null,null,null,null,null,"VV",0]
[null,null,"7,71*5,0*2",null,77.100000000000009,null,null,null,null,null,null,null,null,null,null,null,null,null,null,null,null,null,null,null,null,null,null,null,null,null,null,null,"VV",0]
[null,null,"Mezisoučet",null,337.36878000000002,null,null,null,null,null,null,null,null,null,null,null,null,null,null,null,null,null,null,null,null,null,null,null,null,null,null,null,"VV",1]
[null,null,null,null,null,null,null,null,null,null,null,null,null,null,null,null,null,null,null,null,null,null,null,null,null,null,null,null,null,null,null,null,"SPU"]
[18,"967041112R00","Přisekání rovných ostění v betonu bez odstupu, po hrubém vybourání otvorů","m2",0.24000000000000002,null,{"$f":"ROUND(E156*F156,2)","v":0},null,{"$f":"ROUND(E156*H156,2)","v":0},null,{"$f":"ROUND(E156*J156,2)","v":0},21,{"$f":"G156*(1+L156/100)","v":0},0,{"$f":"ROUND(E156*N156,2)","v":0},6.6000000000000003E-2,{"$f":"ROUND(E156*P156,2)","v":0.02},"801-3","RTS 18/ II","RTS 18/ II",2.3520000000000003,{"$f":"ROUND(E156*U156,2)","v":0.56000000000000005},null,null,null,null,null,null,null,null,null,null,"POL1_"]
[null,null,"bez odstupu, po hrubém vybourání otvorů,",null,null,null,null,null,null,null,null,null,null,null,null,null,null,null,null,null,null,null,null,null,null,null,null,null,null,null,null,null,"SPI"]
[null,null,"1.NP odkaz e) : 0,10*0,30*2",null,6.0000000000000005E-2,null,null,null,null,null,null,null,null,null,null,null,null,null,null,null,null,null,null,null,null,null,null,null,null,null,null,null,"VV",0]
[null,null,"odkaz e1) : 0,30*0,30*2",null,0.18000000000000002,null,null,null,null,null,null,null,null,null,null,null,null,null,null,null,null,null,null,null,null,null,null,null,null,null,null,null,"VV",0]
[null,null,null,null,null,null,null,null,null,null,null,null,null,null,null,null,null,null,null,null,null,null,null,null,null,null,null,null,null,null,null,null,"SPU"]
[19,"968072244R00","Vybourání a vyjmutí kovových rámů a rolet rámů, včetně pomocného lešení o výšce podlahy do 1900 mm a pro zatížení do 1,5 kPa  (150 kg/m2) okenních jednoduchých, plochy do 1 m2","m2",0.63,null,{"$f":"ROUND(E161*F161,2)","v":0},null,{"$f":"ROUND(E161*H161,2)","v":0},null,{"$f":"ROUND(E161*J161,2)","v":0},21,{"$f":"G161*(1+L161/100)","v":0},3.0400000000000002E-3,{"$f":"ROUND(E161*N161,2)","v":0},6.5000000000000002E-2,{"$f":"ROUND(E161*P161,2)","v":0.04},"801-3","RTS 18/ II","RTS 18/ II",0.91300000000000003,{"$f":"ROUND(E161*U161,2)","v":0.57999999999999996},null,null,null,null,null,null,null,null,null,null,"POL1_"]
[null,null,"1.NP odkaz e) : 1,40*0,30",null,0.42000000000000004,null,null,null,null,null,null,null,null,null,null,null,null,null,null,null,null,null,null,null,null,null,null,null,null,null,null,null,"VV",0]
[null,null,"odkaz e1) : 0,70*0,30",null,0.21000000000000002,null,null,null,null,null,null,null,null,null,null,null,null,null,null,null,null,null,null,null,null,null,null,null,null,null,null,null,"VV",0]
[null,null,null,null,null,null,null,null,null,null,null,null,null,null,null,null,null,null,null,null,null,null,null,null,null,null,null,null,null,null,null,null,"SPU"]
[20,"970031160R00","Jádrové vrtání, kruhové prostupy v cihelném zdivu jádrové vrtání, do D 160 mm","m",1.7250000000000001,null,{"$f":"ROUND(E165*F165,2)","v":0},null,{"$f":"ROUND(E165*H165,2)","v":0},null,{"$f":"ROUND(E165*J165,2)","v":0},21,{"$f":"G165*(1+L165/100)","v":0},0,{"$f":"ROUND(E165*N165,2)","v":0},3.6170000000000001E-2,{"$f":"ROUND(E165*P165,2)","v":0.06},"801-3","RTS 18/ II","RTS 18/ II",4,{"$f":"ROUND(E165*U165,2)","v":6.9},null,null,null,null,null,null,null,null,null,null,"POL1_"]
[null,null,"1.PP - odkaz a) : 0,150",null,0.15000000000000002,null,null,null,null,null,null,null,null,null,null,null,null,null,null,null,null,null,null,null,null,null,null,null,null,null,null,null,"VV",0]
[null,null,"1.NP - odkaz a) : 0,150*2+0,150*2+0,150",null,0.75,null,null,null,null,null,null,null,null,null,null,null,null,null,null,null,null,null,null,null,null,null,null,null,null,null,null,null,"VV",0]
[null,null,"Mezisoučet",null,0.9,null,null,null,null,null,null,null,null,null,null,null,null,null,null,null,null,null,null,null,null,null,null,null,null,null,null,null,"VV",1]
[null,null,"1.PP - odkaz c) : 0,275",null,0.27500000000000002,null,null,null,null,null,null,null,null,null,null,null,null,null,null,null,null,null,null,null,null,null,null,null,null,null,null,null,"VV",0]
[null,null,"1.NP- odkaz c) : 0,275*2",null,0.55000000000000004,null,null,null,null,null,null,null,null,null,null,null,null,null,null,null,null,null,null,null,null,null,null,null,null,null,null,null,"VV",0]
[null,null,null,null,null,null,null,null,null,null,null,null,null,null,null,null,null,null,null,null,null,null,null,null,null,null,null,null,null,null,null,null,"SPU"]
[21,"970033160R00","Jádrové vrtání, kruhové prostupy v cihelném zdivu příplatek za jádrové vrtání ve H nad 1,5 m , do D 160 mm","m",1.7250000000000001,null,{"$f":"ROUND(E172*F172,2)","v":0},null,{"$f":"ROUND(E172*H172,2)","v":0},null,{"$f":"ROUND(E172*J172,2)","v":0},21,{"$f":"G172*(1+L172/100)","v":0},8.9000000000000006E-4,{"$f":"ROUND(E172*N172,2)","v":0},0,{"$f":"ROUND(E172*P172,2)","v":0},"801-3","RTS 18/ II","RTS 18/ II",0.79,{"$f":"ROUND(E172*U172,2)","v":1.36},null,null,null,null,null,null,null,null,null,null,"POL1_"]
[null,null,"1.PP - odkaz a) : 0,150",null,0.15000000000000002,null,null,null,null,null,null,null,null,null,null,null,null,null,null,null,null,null,null,null,null,null,null,null,null,null,null,null,"VV",0]
[null,null,"1.NP - odkaz a) : 0,150*2+0,150*2+0,150",null,0.75,null,null,null,null,null,null,null,null,null,null,null,null,null,null,null,null,null,null,null,null,null,null,null,null,null,null,null,"VV",0]
[null,null,"Mezisoučet",null,0.9,null,null,null,null,null,null,null,null,null,null,null,null,null,null,null,null,null,null,null,null,null,null,null,null,null,null,null,"VV",1]
[null,null,"1.PP - odkaz c) : 0,275",null,0.27500000000000002,null,null,null,null,null,null,null,null,null,null,null,null,null,null,null,null,null,null,null,null,null,null,null,null,null,null,null,"VV",0]
[null,null,"1.NP- odkaz c) : 0,275*2",null,0.55000000000000004,null,null,null,null,null,null,null,null,null,null,null,null,null,null,null,null,null,null,null,null,null,null,null,null,null,null,null,"VV",0]
[null,null,null,null,null,null,null,null,null,null,null,null,null,null,null,null,null,null,null,null,null,null,null,null,null,null,null,null,null,null,null,null,"SPU"]
[22,"970034160R00","Jádrové vrtání, kruhové prostupy v cihelném zdivu příplatek za jádrové vrtání vodorovně ve stěně, do D 160 mm","m",1.7250000000000001,null,{"$f":"ROUND(E179*F179,2)","v":0},null,{"$f":"ROUND(E179*H179,2)","v":0},null,{"$f":"ROUND(E179*J179,2)","v":0},21,{"$f":"G179*(1+L179/100)","v":0},1.0000000000000001E-5,{"$f":"ROUND(E179*N179,2)","v":0},0,{"$f":"ROUND(E179*P179,2)","v":0},"801-3","RTS 18/ II","RTS 18/ II",1.2690000000000001,{"$f":"ROUND(E179*U179,2)","v":2.19},null,null,null,null,null,null,null,null,null,null,"POL1_"]
[null,null,"1.PP - odkaz a) : 0,150",null,0.15000000000000002,null,null,null,null,null,null,null,null,null,null,null,null,null,null,null,null,null,null,null,null,null,null,null,null,null,null,null,"VV",0]
[null,null,"1.NP - odkaz a) : 0,150*2+0,150*2+0,150",null,0.75,null,null,null,null,null,null,null,null,null,null,null,null,null,null,null,null,null,null,null,null,null,null,null,null,null,null,null,"VV",0]
[null,null,"Mezisoučet",null,0.9,null,null,null,null,null,null,null,null,null,null,null,null,null,null,null,null,null,null,null,null,null,null,null,null,null,null,null,"VV",1]
[null,null,"1.PP - odkaz c) : 0,275",null,0.27500000000000002,null,null,null,null,null,null,null,null,null,null,null,null,null,null,null,null,null,null,null,null,null,null,null,null,null,null,null,"VV",0]
[null,null,"1.NP- odkaz c) : 0,275*2",null,0.55000000000000004,null,null,null,null,null,null,null,null,null,null,null,null,null,null,null,null,null,null,null,null,null,null,null,null,null,null,null,"VV",0]
[null,null,null,null,null,null,null,null,null,null,null,null,null,null,null,null,null,null,null,null,null,null,null,null,null,null,null,null,null,null,null,null,"SPU"]
[23,"970251100R00","Řezání železobetonu hloubka řezu 100 mm","m",2.8000000000000003,null,{"$f":"ROUND(E186*F186,2)","v":0},null,{"$f":"ROUND(E186*H186,2)","v":0},null,{"$f":"ROUND(E186*J186,2)","v":0},21,{"$f":"G186*(1+L186/100)","v":0},0,{"$f":"ROUND(E186*N186,2)","v":0},4.6000000000000001E-4,{"$f":"ROUND(E186*P186,2)","v":0},"801-3","RTS 18/ II","RTS 18/ II",1,{"$f":"ROUND(E186*U186,2)","v":2.8},null,null,null,null,null,null,null,null,null,null,"POL1_"]
[null,null,"1.NP odkaz e) : (0,10*2+0,30)*2",null,1,null,null,null,null,null,null,null,null,null,null,null,null,null,null,null,null,null,null,null,null,null,null,null,null,null,null,null,"VV",0]
[null,null,"odkaz e1) : 0,30*3*2",null,1.8,null,null,null,null,null,null,null,null,null,null,null,null,null,null,null,null,null,null,null,null,null,null,null,null,null,null,null,"VV",0]
[null,null,null,null,null,null,null,null,null,null,null,null,null,null,null,null,null,null,null,null,null,null,null,null,null,null,null,null,null,null,null,null,"SPU"]
[24,"971052431R00","Vybourání a prorážení otvorů v železobetonových zdech a příčkách plochy do 0,25 m2, tloušťky do 150 mm","kus",2,null,{"$f":"ROUND(E190*F190,2)","v":0},null,{"$f":"ROUND(E190*H190,2)","v":0},null,{"$f":"ROUND(E190*J190,2)","v":0},21,{"$f":"G190*(1+L190/100)","v":0},3.4000000000000002E-4,{"$f":"ROUND(E190*N190,2)","v":0},9.3000000000000013E-2,{"$f":"ROUND(E190*P190,2)","v":0.19},"801-3","RTS 18/ II","RTS 18/ II",1.9600000000000002,{"$f":"ROUND(E190*U190,2)","v":3.92},null,null,null,null,null,null,null,null,null,null,"POL1_"]
[null,null,"základových nebo nadzákladových,",null,null,null,null,null,null,null,null,null,null,null,null,null,null,null,null,null,null,null,null,null,null,null,null,null,null,null,null,null,"SPI"]
[null,null,"1.NP odkaz d) m.č. 1.38 : 2",null,2,null,null,null,null,null,null,null,null,null,null,null,null,null,null,null,null,null,null,null,null,null,null,null,null,null,null,null,"VV",0]
[null,null,null,null,null,null,null,null,null,null,null,null,null,null,null,null,null,null,null,null,null,null,null,null,null,null,null,null,null,null,null,null,"SPU"]
[25,"97003PC01","Vrtání jádrové v SDK příčce tl 150 mm,  prům. min 125 mm vč. odvozu a likvidace vybouraných hmot","ks    ",2,null,{"$f":"ROUND(E194*F194,2)","v":0},null,{"$f":"ROUND(E194*H194,2)","v":0},null,{"$f":"ROUND(E194*J194,2)","v":0},21,{"$f":"G194*(1+L194/100)","v":0},0,{"$f":"ROUND(E194*N194,2)","v":0},0,{"$f":"ROUND(E194*P194,2)","v":0},null,"Vlastní","Indiv",0,{"$f":"ROUND(E194*U194,2)","v":0},null,null,null,null,null,null,null,null,null,null,"POL1_"]
[null,null,"1.PP - odkaz b) : 1",null,1,null,null,null,null,null,null,null,null,null,null,null,null,null,null,null,null,null,null,null,null,null,null,null,null,null,null,null,"VV",0]
[null,null,"1.NP - odkaz b) : 1",null,1,null,null,null,null,null,null,null,null,null,null,null,null,null,null,null,null,null,null,null,null,null,null,null,null,null,null,null,"VV",0]
[null,null,"Mezisoučet",null,2,null,null,null,null,null,null,null,null,null,null,null,null,null,null,null,null,null,null,null,null,null,null,null,null,null,null,null,"VV",1]
[null,null,null,null,null,null,null,null,null,null,null,null,null,null,null,null,null,null,null,null,null,null,null,null,null,null,null,null,null,null,null,null,"SPU"]
["Díl:","99","Staveništní přesun hmot",null,null,null,{"$f":"SUMIF(AG200:AG202,\"<>NOR\",G200:G202)","v":0},null,{"$f":"SUM(I200:I202)","v":0},null,{"$f":"SUM(K200:K202)","v":0},null,{"$f":"SUM(M200:M202)","v":0},null,{"$f":"SUM(O200:O202)","v":0},null,{"$f":"SUM(Q200:Q202)","v":0},null,null,null,null,{"$f":"SUM(V200:V202)","v":10.33},null,null,null,null,null,null,null,null,null,null,"DIL"]
[26,"999281108R00","Přesun hmot pro opravy a údržbu objektů pro opravy a údržbu dosavadních objektů včetně vnějších plášťů\r\n výšky do 12 m,  ","t",5.4585900000000001,null,{"$f":"ROUND(E200*F200,2)","v":0},null,{"$f":"ROUND(E200*H200,2)","v":0},null,{"$f":"ROUND(E200*J200,2)","v":0},21,{"$f":"G200*(1+L200/100)","v":0},0,{"$f":"ROUND(E200*N200,2)","v":0},0,{"$f":"ROUND(E200*P200,2)","v":0},"801-4","RTS 18/ II","RTS 18/ II",1.8920000000000001,{"$f":"ROUND(E200*U200,2)","v":10.33},null,null,null,null,null,null,null,null,null,null,"POL7_"]
[null,null,"oborů 801, 803, 811 a 812",null,null,null,null,null,null,null,null,null,null,null,null,null,null,null,null,null,null,null,null,null,null,null,null,null,null,null,null,null,"SPI"]
[null,null,null,null,null,null,null,null,null,null,null,null,null,null,null,null,null,null,null,null,null,null,null,null,null,null,null,null,null,null,null,null,"SPU"]
["Díl:","767","Konstrukce zámečnické",null,null,null,{"$f":"SUMIF(AG204:AG244,\"<>NOR\",G204:G244)","v":0},null,{"$f":"SUM(I204:I244)","v":0},null,{"$f":"SUM(K204:K244)","v":0},null,{"$f":"SUM(M204:M244)","v":0},null,{"$f":"SUM(O204:O244)","v":0.01},null,{"$f":"SUM(Q204:Q244)","v":0.34},null,null,null,null,{"$f":"SUM(V204:V244)","v":126.16},null,null,null,null,null,null,null,null,null,null,"DIL"]
[27,"767584502R00","Montáž podhledů lamelových a kazetových Montáž podhledů z kazet včetně montáže nosného roštu na ocelovou konstrukci, rozměry kazet 600 mm x 600 mm, bez určení výměry","m2",83.989060000000009,null,{"$f":"ROUND(E204*F204,2)","v":0},null,{"$f":"ROUND(E204*H204,2)","v":0},null,{"$f":"ROUND(E204*J204,2)","v":0},21,{"$f":"G204*(1+L204/100)","v":0},6.0000000000000002E-5,{"$f":"ROUND(E204*N204,2)","v":0.01},0,{"$f":"ROUND(E204*P204,2)","v":0},"800-767","RTS 18/ II","RTS 18/ II",0.87000000000000011,{"$f":"ROUND(E204*U204,2)","v":73.069999999999993},null,null,null,null,null,null,null,null,null,null,"POL1_"]
[null,null,"1.PP - odkaz f) : ",null,null,null,null,null,null,null,null,null,null,null,null,null,null,null,null,null,null,null,null,null,null,null,null,null,null,null,null,null,"VV",0]
[null,null,"01.47 : 1,20*3,0+1,90*4,80+0,70*3,0",null,14.82,null,null,null,null,null,null,null,null,null,null,null,null,null,null,null,null,null,null,null,null,null,null,null,null,null,null,null,"VV",0]
[null,null,"01.71, 01.72, 01.47 : 1,20*2,40+0,90*(25,475+22,475)",null,46.035000000000004,null,null,null,null,null,null,null,null,null,null,null,null,null,null,null,null,null,null,null,null,null,null,null,null,null,null,null,"VV",0]
[null,null,"01.81 : 0,825*(1,20+2,5625)",null,3.10406,null,null,null,null,null,null,null,null,null,null,null,null,null,null,null,null,null,null,null,null,null,null,null,null,null,null,null,"VV",0]
[null,null,"Mezisoučet",null,63.959060000000001,null,null,null,null,null,null,null,null,null,null,null,null,null,null,null,null,null,null,null,null,null,null,null,null,null,null,null,"VV",1]
[null,null,"1.NP - odkaz f) : ",null,null,null,null,null,null,null,null,null,null,null,null,null,null,null,null,null,null,null,null,null,null,null,null,null,null,null,null,null,"VV",0]
[null,null,"1.77 : 0,70*1,30+0,70*4,30",null,3.9200000000000004,null,null,null,null,null,null,null,null,null,null,null,null,null,null,null,null,null,null,null,null,null,null,null,null,null,null,null,"VV",0]
[null,null,"Mezisoučet",null,3.9200000000000004,null,null,null,null,null,null,null,null,null,null,null,null,null,null,null,null,null,null,null,null,null,null,null,null,null,null,null,"VV",1]
[null,null,"1.NP odkaz k) : ",null,null,null,null,null,null,null,null,null,null,null,null,null,null,null,null,null,null,null,null,null,null,null,null,null,null,null,null,null,"VV",0]
[null,null,"1.38 : 16,11",null,16.110000000000003,null,null,null,null,null,null,null,null,null,null,null,null,null,null,null,null,null,null,null,null,null,null,null,null,null,null,null,"VV",0]
[null,null,"Mezisoučet",null,16.110000000000003,null,null,null,null,null,null,null,null,null,null,null,null,null,null,null,null,null,null,null,null,null,null,null,null,null,null,null,"VV",1]
[null,null,null,null,null,null,null,null,null,null,null,null,null,null,null,null,null,null,null,null,null,null,null,null,null,null,null,null,null,null,null,null,"SPU"]
[28,"767581801R00","Demontáž podhledů kazet","m2",67.87906000000001,null,{"$f":"ROUND(E217*F217,2)","v":0},null,{"$f":"ROUND(E217*H217,2)","v":0},null,{"$f":"ROUND(E217*J217,2)","v":0},21,{"$f":"G217*(1+L217/100)","v":0},0,{"$f":"ROUND(E217*N217,2)","v":0},5.0000000000000001E-3,{"$f":"ROUND(E217*P217,2)","v":0.34},"800-767","RTS 18/ II","RTS 18/ II",0.51,{"$f":"ROUND(E217*U217,2)","v":34.619999999999997},null,null,null,null,null,null,null,null,null,null,"POL1_"]
[null,null,"1.PP - odkaz f) : ",null,null,null,null,null,null,null,null,null,null,null,null,null,null,null,null,null,null,null,null,null,null,null,null,null,null,null,null,null,"VV",0]
[null,null,"01.47 : 1,20*3,0+1,90*4,80+0,70*3,0",null,14.82,null,null,null,null,null,null,null,null,null,null,null,null,null,null,null,null,null,null,null,null,null,null,null,null,null,null,null,"VV",0]
[null,null,"01.71, 01.72, 01.47 : 1,20*2,40+0,90*(25,475+22,475)",null,46.035000000000004,null,null,null,null,null,null,null,null,null,null,null,null,null,null,null,null,null,null,null,null,null,null,null,null,null,null,null,"VV",0]
[null,null,"01.81 : 0,825*(1,20+2,5625)",null,3.10406,null,null,null,null,null,null,null,null,null,null,null,null,null,null,null,null,null,null,null,null,null,null,null,null,null,null,null,"VV",0]
[null,null,"Mezisoučet",null,63.959060000000001,null,null,null,null,null,null,null,null,null,null,null,null,null,null,null,null,null,null,null,null,null,null,null,null,null,null,null,"VV",1]
[null,null,"1.NP - odkaz f) : ",null,null,null,null,null,null,null,null,null,null,null,null,null,null,null,null,null,null,null,null,null,null,null,null,null,null,null,null,null,"VV",0]
[null,null,"1.77 : 0,70*1,30+0,70*4,30",null,3.9200000000000004,null,null,null,null,null,null,null,null,null,null,null,null,null,null,null,null,null,null,null,null,null,null,null,null,null,null,null,"VV",0]
[null,null,"Mezisoučet",null,3.9200000000000004,null,null,null,null,null,null,null,null,null,null,null,null,null,null,null,null,null,null,null,null,null,null,null,null,null,null,null,"VV",1]
[null,null,null,null,null,null,null,null,null,null,null,null,null,null,null,null,null,null,null,null,null,null,null,null,null,null,null,null,null,null,null,null,"SPU"]
[29,"767PC01","Demontáž a opětovná Montáž kovových kazet podhledu v potřebném rozsahu pro montáž VZT potrubí","m     ",79,null,{"$f":"ROUND(E227*F227,2)","v":0},null,{"$f":"ROUND(E227*H227,2)","v":0},null,{"$f":"ROUND(E227*J227,2)","v":0},21,{"$f":"G227*(1+L227/100)","v":0},0,{"$f":"ROUND(E227*N227,2)","v":0},0,{"$f":"ROUND(E227*P227,2)","v":0},null,"Vlastní","Indiv",0,{"$f":"ROUND(E227*U227,2)","v":0},null,null,null,null,null,null,null,null,null,null,"POL1_"]
[null,null,"1.NP : ",null,null,null,null,null,null,null,null,null,null,null,null,null,null,null,null,null,null,null,null,null,null,null,null,null,null,null,null,null,"VV",0]
[null,null,"odkaz j) šířka cca 0,5 m : 79,0",null,79,null,null,null,null,null,null,null,null,null,null,null,null,null,null,null,null,null,null,null,null,null,null,null,null,null,null,null,"VV",0]
[null,null,null,null,null,null,null,null,null,null,null,null,null,null,null,null,null,null,null,null,null,null,null,null,null,null,null,null,null,null,null,null,"SPU"]
[30,"767PC02","D+M nového skládaného podhledu vč. nosného roštu a provedení detailu u kosých stěn","m2    ",16.110000000000003,null,{"$f":"ROUND(E231*F231,2)","v":0},null,{"$f":"ROUND(E231*H231,2)","v":0},null,{"$f":"ROUND(E231*J231,2)","v":0},21,{"$f":"G231*(1+L231/100)","v":0},2.2000000000000001E-4,{"$f":"ROUND(E231*N231,2)","v":0},0,{"$f":"ROUND(E231*P231,2)","v":0},null,"Vlastní","Indiv",0.43000000000000005,{"$f":"ROUND(E231*U231,2)","v":6.93},null,null,null,null,null,null,null,null,null,null,"POL1_"]
[null,null,"1.NP odkaz k) : ",null,null,null,null,null,null,null,null,null,null,null,null,null,null,null,null,null,null,null,null,null,null,null,null,null,null,null,null,null,"VV",0]
[null,null,"1.38 : 16,11",null,16.110000000000003,null,null,null,null,null,null,null,null,null,null,null,null,null,null,null,null,null,null,null,null,null,null,null,null,null,null,null,"VV",0]
[null,null,null,null,null,null,null,null,null,null,null,null,null,null,null,null,null,null,null,null,null,null,null,null,null,null,null,null,null,null,null,null,"SPU"]
[31,"767PC03","ÚPRAVA KAZET A ROŠTŮ PRO ZPĚTNOU MONTÁŽ vč. dodání potřebného množství nových kazet a nosných prvků","m2    ",67.87906000000001,null,{"$f":"ROUND(E235*F235,2)","v":0},null,{"$f":"ROUND(E235*H235,2)","v":0},null,{"$f":"ROUND(E235*J235,2)","v":0},21,{"$f":"G235*(1+L235/100)","v":0},0,{"$f":"ROUND(E235*N235,2)","v":0},0,{"$f":"ROUND(E235*P235,2)","v":0},null,"Vlastní","Indiv",0.17,{"$f":"ROUND(E235*U235,2)","v":11.54},null,null,null,null,null,null,null,null,null,null,"POL1_"]
[null,null,"1.PP - odkaz f) : ",null,null,null,null,null,null,null,null,null,null,null,null,null,null,null,null,null,null,null,null,null,null,null,null,null,null,null,null,null,"VV",0]
[null,null,"01.47 : 1,20*3,0+1,90*4,80+0,70*3,0",null,14.82,null,null,null,null,null,null,null,null,null,null,null,null,null,null,null,null,null,null,null,null,null,null,null,null,null,null,null,"VV",0]
[null,null,"01.71, 01.72, 01.47 : 1,20*2,40+0,90*(25,475+22,475)",null,46.035000000000004,null,null,null,null,null,null,null,null,null,null,null,null,null,null,null,null,null,null,null,null,null,null,null,null,null,null,null,"VV",0]
[null,null,"01.81 : 0,825*(1,20+2,5625)",null,3.10406,null,null,null,null,null,null,null,null,null,null,null,null,null,null,null,null,null,null,null,null,null,null,null,null,null,null,null,"VV",0]
[null,null,"Mezisoučet",null,63.959060000000001,null,null,null,null,null,null,null,null,null,null,null,null,null,null,null,null,null,null,null,null,null,null,null,null,null,null,null,"VV",1]
[null,null,"1.NP - odkaz f) : ",null,null,null,null,null,null,null,null,null,null,null,null,null,null,null,null,null,null,null,null,null,null,null,null,null,null,null,null,null,"VV",0]
[null,null,"1.77 : 0,70*1,30+0,70*4,30",null,3.9200000000000004,null,null,null,null,null,null,null,null,null,null,null,null,null,null,null,null,null,null,null,null,null,null,null,null,null,null,null,"VV",0]
[null,null,"Mezisoučet",null,3.9200000000000004,null,null,null,null,null,null,null,null,null,null,null,null,null,null,null,null,null,null,null,null,null,null,null,null,null,null,null,"VV",1]
[null,null,null,null,null,null,null,null,null,null,null,null,null,null,null,null,null,null,null,null,null,null,null,null,null,null,null,null,null,null,null,null,"SPU"]
["Díl:","784","Malby",null,null,null,{"$f":"SUMIF(AG246:AG259,\"<>NOR\",G246:G259)","v":0},null,{"$f":"SUM(I246:I259)","v":0},null,{"$f":"SUM(K246:K259)","v":0},null,{"$f":"SUM(M246:M259)","v":0},null,{"$f":"SUM(O246:O259)","v":0.23},null,{"$f":"SUM(Q246:Q259)","v":0},null,null,null,null,{"$f":"SUM(V246:V259)","v":112.5},null,null,null,null,null,null,null,null,null,null,"DIL"]
[32,"784442021RT2","Malby z malířských směsí disperzních, v místnostech do 3,8 m, jednobarevné, jednonásobné + 1x penetrace","m2",321.25878,null,{"$f":"ROUND(E246*F246,2)","v":0},null,{"$f":"ROUND(E246*H246,2)","v":0},null,{"$f":"ROUND(E246*J246,2)","v":0},21,{"$f":"G246*(1+L246/100)","v":0},3.2000000000000003E-4,{"$f":"ROUND(E246*N246,2)","v":0.1},0,{"$f":"ROUND(E246*P246,2)","v":0},"800-784","RTS 18/ II","RTS 18/ II",0.13440000000000002,{"$f":"ROUND(E246*U246,2)","v":43.18},null,null,null,null,null,null,null,null,null,null,"POL1_"]
[null,null,"1.NP odkaz g) : ",null,null,null,null,null,null,null,null,null,null,null,null,null,null,null,null,null,null,null,null,null,null,null,null,null,null,null,null,null,"VV",0]
[null,null,"1.62 : 0,60*6,25",null,3.75,null,null,null,null,null,null,null,null,null,null,null,null,null,null,null,null,null,null,null,null,null,null,null,null,null,null,null,"VV",0]
[null,null,"1.NP odkaz i) : ",null,null,null,null,null,null,null,null,null,null,null,null,null,null,null,null,null,null,null,null,null,null,null,null,null,null,null,null,null,"VV",0]
[null,null,"1.20 : 7,71*4,92*2",null,75.866400000000013,null,null,null,null,null,null,null,null,null,null,null,null,null,null,null,null,null,null,null,null,null,null,null,null,null,null,null,"VV",0]
[null,null,"6,35*5,51+(4,25+4,675)*0,5*5,51+6,35*5,51*3",null,164.54238000000001,null,null,null,null,null,null,null,null,null,null,null,null,null,null,null,null,null,null,null,null,null,null,null,null,null,null,null,"VV",0]
[null,null,"7,71*5,0*2",null,77.100000000000009,null,null,null,null,null,null,null,null,null,null,null,null,null,null,null,null,null,null,null,null,null,null,null,null,null,null,null,"VV",0]
[null,null,"Mezisoučet",null,321.25878,null,null,null,null,null,null,null,null,null,null,null,null,null,null,null,null,null,null,null,null,null,null,null,null,null,null,null,"VV",1]
[null,null,null,null,null,null,null,null,null,null,null,null,null,null,null,null,null,null,null,null,null,null,null,null,null,null,null,null,null,null,null,null,"SPU"]
[33,"784452912R00","Oprava maleby z malířských směsí se začištěním v místnostech přes 3,8 m do 5 m, z malířských směsí tekutých, dvojnásobné bez pačokování, jednobarevné, s obroušením a oprášením","m2",650,null,{"$f":"ROUND(E255*F255,2)","v":0},null,{"$f":"ROUND(E255*H255,2)","v":0},null,{"$f":"ROUND(E255*J255,2)","v":0},21,{"$f":"G255*(1+L255/100)","v":0},2.0000000000000001E-4,{"$f":"ROUND(E255*N255,2)","v":0.13},0,{"$f":"ROUND(E255*P255,2)","v":0},"800-784","RTS 18/ II","RTS 18/ II",0.10665000000000001,{"$f":"ROUND(E255*U255,2)","v":69.319999999999993},null,null,null,null,null,null,null,null,null,null,"POL1_"]
[null,null,"Předpoklad : ",null,null,null,null,null,null,null,null,null,null,null,null,null,null,null,null,null,null,null,null,null,null,null,null,null,null,null,null,null,"VV",0]
[null,null,"1.pp : 200",null,200,null,null,null,null,null,null,null,null,null,null,null,null,null,null,null,null,null,null,null,null,null,null,null,null,null,null,null,"VV",0]
[null,null,"1.np : 450",null,450,null,null,null,null,null,null,null,null,null,null,null,null,null,null,null,null,null,null,null,null,null,null,null,null,null,null,null,"VV",0]
[null,null,null,null,null,null,null,null,null,null,null,null,null,null,null,null,null,null,null,null,null,null,null,null,null,null,null,null,null,null,null,null,"SPU"]
["Díl:","D96","Přesuny suti a vybouraných hmot",null,null,null,{"$f":"SUMIF(AG261:AG275,\"<>NOR\",G261:G275)","v":0},null,{"$f":"SUM(I261:I275)","v":0},null,{"$f":"SUM(K261:K275)","v":0},null,{"$f":"SUM(M261:M275)","v":0},null,{"$f":"SUM(O261:O275)","v":0},null,{"$f":"SUM(Q261:Q275)","v":0},null,null,null,null,{"$f":"SUM(V261:V275)","v":15.299999999999999},null,null,null,null,null,null,null,null,null,null,"DIL"]
[34,"979011221R00","Svislá doprava suti a vybouraných hmot nošením za prvé podlaží pod základním podlažím","t",1.3910800000000001,null,{"$f":"ROUND(E261*F261,2)","v":0},null,{"$f":"ROUND(E261*H261,2)","v":0},null,{"$f":"ROUND(E261*J261,2)","v":0},21,{"$f":"G261*(1+L261/100)","v":0},0,{"$f":"ROUND(E261*N261,2)","v":0},0,{"$f":"ROUND(E261*P261,2)","v":0},"801-3","RTS 18/ II","RTS 18/ II",2.0670000000000002,{"$f":"ROUND(E261*U261,2)","v":2.88},null,null,null,null,null,null,null,null,null,null,"POL8_"]
[null,null,null,null,null,null,null,null,null,null,null,null,null,null,null,null,null,null,null,null,null,null,null,null,null,null,null,null,null,null,null,null,"SPU"]
[35,"979086213R00","Vodorovná doprava po suchu nebo naložení nakládání vybouraných hmot na dopravní prostředky pro vodorovnou dopravu,  ","t",4.6369400000000001,null,{"$f":"ROUND(E263*F263,2)","v":0},null,{"$f":"ROUND(E263*H263,2)","v":0},null,{"$f":"ROUND(E263*J263,2)","v":0},21,{"$f":"G263*(1+L263/100)","v":0},0,{"$f":"ROUND(E263*N263,2)","v":0},0,{"$f":"ROUND(E263*P263,2)","v":0},"831-2","RTS 18/ II","RTS 18/ II",1.1400000000000001,{"$f":"ROUND(E263*U263,2)","v":5.29},null,null,null,null,null,null,null,null,null,null,"POL8_"]
[null,null,"vybouraných hmot se složením a hrubým urovnáním nebo přeložením na jiný dopravní prostředek, nebo nakládání na dopravní prostředek pro vodorovnou dopravu,",null,null,null,null,null,null,null,null,null,null,null,null,null,null,null,null,null,null,null,null,null,null,null,null,null,null,null,null,null,"SPI",null,null,null,null,null,null,null,null,null,null,null,null,null,null,null,null,null,null,null,{"$f":"C264","v":"vybouraných hmot se složením a hrubým urovnáním nebo přeložením na jiný dopravní prostředek, nebo nakládání na dopravní prostředek pro vodorovnou dopravu,"}]
[null,null,null,null,null,null,null,null,null,null,null,null,null,null,null,null,null,null,null,null,null,null,null,null,null,null,null,null,null,null,null,null,"SPU"]
[36,"979081111RT2","Odvoz suti a vybouraných hmot na skládku do 1 km","t",4.6369400000000001,null,{"$f":"ROUND(E266*F266,2)","v":0},null,{"$f":"ROUND(E266*H266,2)","v":0},null,{"$f":"ROUND(E266*J266,2)","v":0},21,{"$f":"G266*(1+L266/100)","v":0},0,{"$f":"ROUND(E266*N266,2)","v":0},0,{"$f":"ROUND(E266*P266,2)","v":0},"801-3","RTS 18/ II","RTS 18/ II",0.49000000000000005,{"$f":"ROUND(E266*U266,2)","v":2.27},null,null,null,null,null,null,null,null,null,null,"POL8_"]
[null,null,null,null,null,null,null,null,null,null,null,null,null,null,null,null,null,null,null,null,null,null,null,null,null,null,null,null,null,null,null,null,"SPU"]
[37,"979081121RT2","Odvoz suti a vybouraných hmot na skládku příplatek za každý další 1 km","t",51.006330000000005,null,{"$f":"ROUND(E268*F268,2)","v":0},null,{"$f":"ROUND(E268*H268,2)","v":0},null,{"$f":"ROUND(E268*J268,2)","v":0},21,{"$f":"G268*(1+L268/100)","v":0},0,{"$f":"ROUND(E268*N268,2)","v":0},0,{"$f":"ROUND(E268*P268,2)","v":0},"801-3","RTS 18/ II","RTS 18/ II",0,{"$f":"ROUND(E268*U268,2)","v":0},null,null,null,null,null,null,null,null,null,null,"POL8_"]
[null,null,null,null,null,null,null,null,null,null,null,null,null,null,null,null,null,null,null,null,null,null,null,null,null,null,null,null,null,null,null,null,"SPU"]
[38,"979082111R00","Vnitrostaveništní doprava suti a vybouraných hmot do 10 m","t",4.6369400000000001,null,{"$f":"ROUND(E270*F270,2)","v":0},null,{"$f":"ROUND(E270*H270,2)","v":0},null,{"$f":"ROUND(E270*J270,2)","v":0},21,{"$f":"G270*(1+L270/100)","v":0},0,{"$f":"ROUND(E270*N270,2)","v":0},0,{"$f":"ROUND(E270*P270,2)","v":0},"801-3","RTS 18/ II","RTS 18/ II",0.94200000000000006,{"$f":"ROUND(E270*U270,2)","v":4.37},null,null,null,null,null,null,null,null,null,null,"POL8_"]
[null,null,null,null,null,null,null,null,null,null,null,null,null,null,null,null,null,null,null,null,null,null,null,null,null,null,null,null,null,null,null,null,"SPU"]
[39,"979082121R00","Vnitrostaveništní doprava suti a vybouraných hmot příplatek k ceně za každých dalších 5 m","t",4.6369400000000001,null,{"$f":"ROUND(E272*F272,2)","v":0},null,{"$f":"ROUND(E272*H272,2)","v":0},null,{"$f":"ROUND(E272*J272,2)","v":0},21,{"$f":"G272*(1+L272/100)","v":0},0,{"$f":"ROUND(E272*N272,2)","v":0},0,{"$f":"ROUND(E272*P272,2)","v":0},"801-3","RTS 18/ II","RTS 18/ II",0.10500000000000001,{"$f":"ROUND(E272*U272,2)","v":0.49},null,null,null,null,null,null,null,null,null,null,"POL8_"]
[null,null,null,null,null,null,null,null,null,null,null,null,null,null,null,null,null,null,null,null,null,null,null,null,null,null,null,null,null,null,null,null,"SPU"]
[40,"979990110R00","Poplatek za skládku sádrokartonové desky","t",4.6369400000000001,null,{"$f":"ROUND(E274*F274,2)","v":0},null,{"$f":"ROUND(E274*H274,2)","v":0},null,{"$f":"ROUND(E274*J274,2)","v":0},21,{"$f":"G274*(1+L274/100)","v":0},0,{"$f":"ROUND(E274*N274,2)","v":0},0,{"$f":"ROUND(E274*P274,2)","v":0},"801-3","RTS 18/ II","RTS 18/ II",0,{"$f":"ROUND(E274*U274,2)","v":0},null,null,null,null,null,null,null,null,null,null,"POL8_"]
[null,null,null,null,null,null,null,null,null,null,null,null,null,null,null,null,null,null,null,null,null,null,null,null,null,null,null,null,null,null,null,null,"SPU"]
["Díl:","VN","Vedlejší náklady",null,null,null,{"$f":"SUMIF(AG277:AG288,\"<>NOR\",G277:G288)","v":0},null,{"$f":"SUM(I277:I288)","v":0},null,{"$f":"SUM(K277:K288)","v":0},null,{"$f":"SUM(M277:M288)","v":0},null,{"$f":"SUM(O277:O288)","v":0},null,{"$f":"SUM(Q277:Q288)","v":0},null,null,null,null,{"$f":"SUM(V277:V288)","v":0},null,null,null,null,null,null,null,null,null,null,"DIL"]
[41,"005121010R","Vybudování zařízení staveniště","Soubor",1,null,{"$f":"ROUND(E277*F277,2)","v":0},null,{"$f":"ROUND(E277*H277,2)","v":0},null,{"$f":"ROUND(E277*J277,2)","v":0},21,{"$f":"G277*(1+L277/100)","v":0},0,{"$f":"ROUND(E277*N277,2)","v":0},0,{"$f":"ROUND(E277*P277,2)","v":0},null,"RTS 18/ II","Indiv",0,{"$f":"ROUND(E277*U277,2)","v":0},null,null,null,null,null,null,null,null,null,null,"POL99_2"]
[null,null,null,null,null,null,null,null,null,null,null,null,null,null,null,null,null,null,null,null,null,null,null,null,null,null,null,null,null,null,null,null,"SPU"]
[42,"005121020R","Provoz zařízení staveniště ","Soubor",1,null,{"$f":"ROUND(E279*F279,2)","v":0},null,{"$f":"ROUND(E279*H279,2)","v":0},null,{"$f":"ROUND(E279*J279,2)","v":0},21,{"$f":"G279*(1+L279/100)","v":0},0,{"$f":"ROUND(E279*N279,2)","v":0},0,{"$f":"ROUND(E279*P279,2)","v":0},null,"RTS 18/ II","Indiv",0,{"$f":"ROUND(E279*U279,2)","v":0},null,null,null,null,null,null,null,null,null,null,"POL99_2"]
[null,null,null,null,null,null,null,null,null,null,null,null,null,null,null,null,null,null,null,null,null,null,null,null,null,null,null,null,null,null,null,null,"SPU"]
[43,"005121030R","Odstranění zařízení staveniště","Soubor",1,null,{"$f":"ROUND(E281*F281,2)","v":0},null,{"$f":"ROUND(E281*H281,2)","v":0},null,{"$f":"ROUND(E281*J281,2)","v":0},21,{"$f":"G281*(1+L281/100)","v":0},0,{"$f":"ROUND(E281*N281,2)","v":0},0,{"$f":"ROUND(E281*P281,2)","v":0},null,"RTS 18/ II","Indiv",0,{"$f":"ROUND(E281*U281,2)","v":0},null,null,null,null,null,null,null,null,null,null,"POL99_2"]
[null,null,null,null,null,null,null,null,null,null,null,null,null,null,null,null,null,null,null,null,null,null,null,null,null,null,null,null,null,null,null,null,"SPU"]
[44,"005122010R","Provoz objednatele ","Soubor",1,null,{"$f":"ROUND(E283*F283,2)","v":0},null,{"$f":"ROUND(E283*H283,2)","v":0},null,{"$f":"ROUND(E283*J283,2)","v":0},21,{"$f":"G283*(1+L283/100)","v":0},0,{"$f":"ROUND(E283*N283,2)","v":0},0,{"$f":"ROUND(E283*P283,2)","v":0},null,"RTS 18/ II","Indiv",0,{"$f":"ROUND(E283*U283,2)","v":0},null,null,null,null,null,null,null,null,null,null,"POL99_1"]
[null,null,null,null,null,null,null,null,null,null,null,null,null,null,null,null,null,null,null,null,null,null,null,null,null,null,null,null,null,null,null,null,"SPU"]
[45,"005124010R","Koordinační činnost","Soubor",1,null,{"$f":"ROUND(E285*F285,2)","v":0},null,{"$f":"ROUND(E285*H285,2)","v":0},null,{"$f":"ROUND(E285*J285,2)","v":0},21,{"$f":"G285*(1+L285/100)","v":0},0,{"$f":"ROUND(E285*N285,2)","v":0},0,{"$f":"ROUND(E285*P285,2)","v":0},null,"RTS 18/ II","Indiv",0,{"$f":"ROUND(E285*U285,2)","v":0},null,null,null,null,null,null,null,null,null,null,"POL99_2"]
[null,null,null,null,null,null,null,null,null,null,null,null,null,null,null,null,null,null,null,null,null,null,null,null,null,null,null,null,null,null,null,null,"SPU"]
[46,"00523  R","Zkoušky a revize","Soubor",1,null,{"$f":"ROUND(E287*F287,2)","v":0},null,{"$f":"ROUND(E287*H287,2)","v":0},null,{"$f":"ROUND(E287*J287,2)","v":0},21,{"$f":"G287*(1+L287/100)","v":0},0,{"$f":"ROUND(E287*N287,2)","v":0},0,{"$f":"ROUND(E287*P287,2)","v":0},null,"RTS 18/ II","Indiv",0,{"$f":"ROUND(E287*U287,2)","v":0},null,null,null,null,null,null,null,null,null,null,"POL99_8"]
[null,null,null,null,null,null,null,null,null,null,null,null,null,null,null,null,null,null,null,null,null,null,null,null,null,null,null,null,null,null,null,null,"SPU"]
[null,null,null,null,null,null,null,null,null,null,null,null,null,null,null,null,null,null,null,null,null,null,null,null,null,null,null,null,null,null,15,21]
[null,"Celkem",null,null,null,null,{"$f":"G8+G63+G88+G93+G99+G121+G144+G199+G203+G245+G260+G276","v":0},null,null,null,null,null,null,null,null,null,null,null,null,null,null,null,null,null,null,null,null,null,null,null,{"$f":"SUMIF(L7:L288,AE289,G7:G288)","v":0},{"$f":"SUMIF(L7:L288,AF289,G7:G288)","v":0},"SUM"]
[null,null,null,null,null,null,null,null,null,null,null,null,null,null,null,null,null,null,null,null,null,null,null,null,null,null,null,null,null,null,null,null,"END"]

{"sheet":"VZ102_RN","index":3,"n_rows":16,"n_cols":4,"rows_kept":16,"cut":false,"hidden":false,"merged":[]}
[null,null,"REKAPITULACE "]
[null,null,"REKONSTRUKCE KLIMATIZACE OBJEKTU Q, větev c1"]
[]
[null,null,"SO03 Objekt specializovaných výukových prostor"]
[null,null,"D1.4.1 Vzduchotechnika a klimatizace"]
[]
[null,"Položka","Název","Celkem"]
[null,"1","Zařízení č.1 - Větrání fakultního foyer",{"$f":"VZ102_Slepy_rozpocet!H45","v":0}]
[null,"2","Zařízení č.2 - Větrání studentského snackbaru",{"$f":"VZ102_Slepy_rozpocet!H115","v":0}]
[null,"3","Zařízení č.3 - Větrání chodeb v 1.PP",{"$f":"VZ102_Slepy_rozpocet!H158","v":0}]
[null,"4","Zařízení č.4 - Klimatizace fakultního foyer a studentského snackbaru",{"$f":"VZ102_Slepy_rozpocet!H195","v":0}]
[null,5,"Zařízení č.5 - Klimatizace místností v 1.PP a 1.NP (jihovýchod)",{"$f":"VZ102_Slepy_rozpocet!H229","v":0}]
[null,6,"Systém centrálního řízení a monitoringu - BMS protokol (BACnet)",{"$f":"VZ102_Slepy_rozpocet!H238","v":0}]
[null,7,"Zpracování projektové dokumentace (SA, VZ, ZT, EL, MaR)",{"$f":"VZ102_Slepy_rozpocet!H241","v":0}]
[null,8,"Ostatní položky",{"$f":"VZ102_Slepy_rozpocet!H248","v":0}]
[null,null,"CELKEM bez DPH",{"$f":"SUM(D8:D15)","v":0}]

{"sheet":"VZ102_Slepy_rozpocet","index":4,"n_rows":248,"n_cols":8,"rows_kept":248,"cut":false,"hidden":false,"merged":[[1,6,1,7],[238,0,238,5],[241,0,241,5],[1,0,1,5],[158,0,158,5],[195,0,195,5],[229,0,229,5],[45,0,45,5],[115,0,115,5]]}
["Položka","Název, zkrácený popis","Výrobce","Kód CZ-CPA","MJ","Počet","Jednot.\ncena","Cena\ncelkem"]
["ZAŘÍZENÍ č. 1 - Větrání fakultního foyer"]
[null,"Výměna větracích jednotek pro m.č. 1.20"]
["1.1\n(VZ 1a\nVZ 1b\nVZ 1c\nVZ 1d)","Větrací rekuperační jednotka závěsná \nnavrhované množství čerstvého vzduchu 1000 m3/h;\nmin. externí tlak 170 Pa\nventilátory s DC motory Pi = 2x210 kW\nfiltrace vzduchu na odvodu G3, řízení teploty vzduchu,\nobtok rekuperačního výměníku,\nteplotní účinnost rekuperace při vysokých/středních/nízkých otáčkách ventilátoru:\nmin. 79,6  / 81,8 / 86,1%,\nentalpická účinnosti rekuperace\nvysokých/středních/nízkých otáčkách ventilátoru:\nmin. 68,6  / 71,7 / 77,9%,\nakustický tlak do okolí Lp při\nvysokých/středních/nízkých otáčkách ventilátoru\nmax. 42,5 / 40,0 / 32,5 dB(A)\nvyhovující požadavkům směrnice na Ecodesign větracích jednotek\nmax. rozměry 1350 x 1200 x 400 (d x š x v)\nmax. hmotnost  80 kg",null,"28.25.12","ks",4,null,{"$f":"F4*G4","v":0}]
[null,"Montáž větrací jednotky",null,null,"ks",4,null,0]
["1.2","Filtrační kazeta s víkem se zámky a výměnnným rámem s filtrační vložkou G3; množství vzduchu 1000 m3/h\nmateriál provedení: pozinkovaná ocel\nmax. počáteční tlaková ztráta 20 Pa\npřipojovací rozměr průměr 315 mm",null,"43.22.12","ks",4,null,0]
[null,"Montáž filtrační kazety",null,null,"ks",4,null,0]
["1.3 \n(OV 1a\n OV 1b\n OV 1c \n OV 1d)","Ohřívač vzduchu elektrický do kruhového potrubí \ns plynulou regulací výkonu\nmnožství ohřívaného vzduchu 1000 m3/h;\ntopný výkon 2,5 kW; 220 V;\nmožnost řízení teploty vzduchu signálem 0-10V;\nbezpečnostní prvky (teplotní čidla), havarijní termostat\nmateriál provedení - pozinkovaný plech;\npřipojovací hrdla průměr D 250 mm",null,"43.22.12","ks",4,null,0]
["1.3a","Adaptér pro externí řízení výkonu elektrického ohřívače",null,"43.22.12","ks",4,null,0]
[null,"Montáž ohřívače vč. zapojení adaptéru",null,null,"kpl",4,null,0]
["1.4","Pružná manžeta kruhová pro napojovací hrdla větrací jednotky průměr D250 mm, délka 100 ÷ 150 mm",null,"43.22.12","ks",16,null,0]
[null,"Montáž",null,null,"ks",16,null,0]
["1.5","Uzavírací klapka se servopohonem","stávající"]
[null,"Demontáž a opětovná montáž",null,null,"ks",4,null,{"$f":"F14*G14","v":0}]
["1.6","Tlumič hluku 500 x 250 mm - délka 1m","stávající"]
[null,"Demontáž a opětovná montáž",null,null,"ks",20,null,{"$f":"F16*G16","v":0}]
[null,"Vzduchotechnické potrubí čtyřhranné skupiny I.\nz pozinkovaného plechu"]
["1.7","Do obvodu 1600 mm  40% tvarovek",null,"43.22.12","bm",50,null,{"$f":"F18*G18","v":0}]
[null,"Vzduchotechnické potrubí kruhové skupiny I.\nz pozinkovaného plechu"]
["1.8","Do průměru D250 20% tvarovek",null,"43.22.12","bm",17,null,{"$f":"F20*G20","v":0}]
["1.9","Do průměru D315 100% tvarovek",null,"43.22.12","bm",2,null,{"$f":"F21*G21","v":0}]
["1.10","Zaslepení kruhového potrubí průměr D100",null,"43.22.12","ks",3,null,{"$f":"F22*G22","v":0}]
[null,"Montáž potrubí (zahrnuje nové i stávající potrubí)"]
[null,"Čtyřhranné potrubí do obvodu 1050 mm 10% tvarovek",null,null,"bm",12,null,{"$f":"F24*G24","v":0}]
[null,"Čtyřhranné potrubí do obvodu 1500 mm 40% tvarovek",null,null,"bm",95,null,0]
[null,"Čtyřhranné potrubí do obvodu 1890 mm 20% tvarovek",null,null,"bm",2,null,0]
[null,"Kruhové potrubí průměru D160 mm 10% tvarovek",null,null,"bm",9,null,0]
[null,"Kruhové potrubí průměru D250 mm 20% tvarovek",null,null,"bm",17,null,0]
[null,"Kruhové potrubí průměru D315 mm 100% tvarovek",null,null,"bm",2,null,0]
["1.11","Tepelná izolace potrubí vzduchu rohožemi z minerální plsti tl. 4 cm s Al fólií, měrná hmotnost   80 kg/m3",null,"43.29.11","m2",95,null,0]
[null,"Montáž tepelné izolace",null,null,"m2",95,null,0]
["1.12","Demontáž části stávajícího potrubí a elementů do šrotu",null,"43.22.12"]
[null,"Demontáž větrací jednotky VAM 1000",null,null,"ks",4,null,{"$f":"F33*G33","v":0}]
[null,"Demontáž kruhové klapky se servopohonem D100 mm",null,null,"ks",4,null,0]
[null,"Demontáž regulátoru konstantního průtoku D100 mm",null,null,"ks",4,null,0]
[null,"Demontáž pružných manžet se čtyřhrannou přírubou",null,null,"ks",8,null,0]
[null,"Demontáž čtyřhranného potrubí",null,null,"m2",40,null,0]
[null,"Demontáž kruhového potrubí",null,null,"m2",10,null,0]
[null,"Demontáž flexibilních vzduchovodů",null,null,"bm",10,null,0]
["1.13","Demontáž části stávajícího potrubí pro další využití včetně tepelných izolací",null,"43.22.12"]
[null,"Demontáž čtyřhranného potrubí\ndo obvodu 1050 mm 10% tvarovek",null,null,"bm",12,null,{"$f":"F41*G41","v":0}]
[null,"Demontáž čtyřhranného potrubí\ndo obvodu 1500 mm 20% tvarovek",null,null,"bm",51,null,{"$f":"F42*G42","v":0}]
[null,"Demontáž kruhového potrubí\nprůměru D160 mm",null,null,"bm",9,null,{"$f":"F43*G43","v":0}]
[null,"Demontáž kruhového potrubí\nprůměru D250 mm",null,null,"bm",2,null,{"$f":"F44*G44","v":0}]
[null,"Celkem",null,null,null,null,null,{"$f":"SUM(H3:H44)","v":0}]
["ZAŘÍZENÍ č. 2 - Větrání studentského snackbaru"]
[null,"Výměna větrací jednoty pro m.č. 1.38"]
["2.1\n(VZ 2)","Větrací rekuperační jednotka závěsná \nnavrhované množství čerstvého vzduchu 1000 m3/h;\nmin. externí tlak 170 Pa\nventilátory s DC motory Pi = 2x210 kW\nfiltrace vzduchu na odvodu G3, řízení teploty vzduchu,\nobtok rekuperačního výměníku,\nteplotní účinnost rekuperace při vysokých/středních/nízkých otáčkách ventilátoru:\nmin. 79,6  / 81,8 / 86,1%,\nentalpická účinnosti rekuperace\nvysokých/středních/nízkých otáčkách ventilátoru:\nmin. 68,6  / 71,7 / 77,9%,\nakustický tlak do okolí Lp při\nvysokých/středních/nízkých otáčkách ventilátoru\nmax. 42,5 / 40,0 / 32,5 dB(A)\nvyhovující požadavkům směrnice na Ecodesign větracích jednotek\nmax. rozměry 1350 x 1200 x 400 (d x š x v)\nmax. hmotnost  80 kg",null,"28.25.12","ks",1,null,{"$f":"F48*G48","v":0}]
["2.1a","Kabelový ovladač pro větrací jednotku",null,"43.22.12","ks",1,null,0]
[null,"Montáž větrací jednotky",null,null,"ks",1,null,0]
["2.2","Vložka tlumiče hluku š 100 x v 250 x 1000 mm\ns náběhovými hranami\nútlum v oktávách\n63  125   250   500    1000    2000   4000   8000 Hz\n5      5       11      21       40         42       28         19   dB",null,"43.22.12","ks",18,null,0]
[null,"Montáž",null,null,"ks",18,null,0]
["2.3","Flexibilní tlumič hluku kruhový D315 mm - délka 1 m\nútlum v oktávách\n63    125     250    500    1000    2000   4000   8000 Hz\n8,6   14,9  15,5    14,6   19,3     16,4     5,6       6,3   dB",null,"43.22.12","ks",1,null,0]
[null,"Montáž",null,null,"ks",1,null,0]
["2.4","Filtrační kazeta s víkem se zámky a výměnnným rámem s filtrační vložkou G3; množství vzduchu 1000 m3/h\nmateriál provedení: pozinkovaná ocel\nmax. počáteční tlaková ztráta 20 Pa\npřipojovací rozměr průměr 315 mm",null,"43.22.12","ks",1,null,0]
[null,null,null,null,null,null,null,0]
["2.5\n(OV 2)","Ohřívač vzduchu elektrický do kruhového potrubí \ns plynulou regulací výkonu\nmnožství ohřívaného vzduchu 1000 m3/h;\ntopný výkon 2,5 kW; 220 V;\nmožnost řízení teploty vzduchu signálem 0-10V;\nbezpečnostní prvky (teplotní čidla), havarijní termostat\nmateriál provedení - pozinkovaný plech;\npřipojovací hrdla průměr D 250 mm",null,"43.22.12","ks",1,null,0]
["2.5a","Adaptér pro externí řízení výkonu elektrického ohřívače",null,"43.22.12","ks",1,null,0]
[null,"Montáž ohřívače vč. zapojení adaptéru",null,null,"kpl",1,null,0]
["2.6","Regulační klapka těsná do čtyřhranného potrubí\ns přípravou pro servopohon  5 Nm\n(servopohon dodávka MaR)\npřipojovací rozměr 500x250 mm\nmateriál provedení pozinovaný plech",null,"43.22.12","ks",1,null,0]
[null,"Montáž",null,null,"ks",1,null,0]
["2.7","Regulační klapka těsná do čtyřhranného potrubí\ns přípravou pro servopohon  5 Nm\n(servopohon dodávka MaR)\npřipojovací rozměr 400x200 mm\nmateriál provedení pozinovaný plech",null,"43.22.12","ks",1,null,0]
[null,"Montáž",null,null,"ks",1,null,0]
["2.8","Regulační klapka jednolistová do kruhového potrubí\ns ručním ovládáním; připojovací rozměr D250  \nmateriál provedení pozinkovaný plech",null,"43.22.12","ks",2,null,0]
[null,"Montáž",null,null,"ks",2,null,0]
["2.9","Regulační klapka jednolistová do kruhového potrubí\ns ručním ovládáním; připojovací rozměr D200\nmateriál provedení pozinkovaný plech",null,"43.22.12","ks",3,null,0]
[null,"Montáž",null,null,"ks",3,null,0]
["2.10","Přívodní vířivý anemostat s nastavitelnými lamelami\nmnožství vzduchu 450 m3/h; výška instalace 3,1 m\nmateriál provedení pozinkovaný plech\nkruhové hrdlo horizontální D250 mm, čelní deska čtvercová 600x600 mm, prášková barva odstín RAL 9010\ninstalace do rastrového podhledu 600x600 mm\nmax. tlaková ztráta 15 Pa\nmax. hladina akustického výkonu  40 dB(A)",null,"43.22.12","ks",2,null,0]
[null,"Montáž",null,null,"ks",2,null,0]
["2.11","Odvodní anemostat\nmnožství vzduchu 335 m3/h; výška instalace 3,1 m\nmateriál provedení pozinkovaný plech\nkruhové hrdlo horizontální D200 mm, čelní deska čtvercová 300x300 mm, prášková barva odstín RAL 9010\ninstalace do rastrového podhledu 600x600 mm\nmax. tlaková ztráta 40 Pa\nmax. hladina akustického výkonu  40 dB(A)",null,"43.22.12","ks",3,null,0]
[null,"Montáž",null,null,"ks",3,null,0]
["2.12","Sací protidešťová žaluzie se sítem a rámem do potrubí\nrozměr 1000x300 mm; materiál elexovaný hliník;\nodstín RAL dle stávajících žaluzií;\nmnožství vzduchcu 1900 m3/h\nmax. tlaková ztráta 15 Pa",null,"43.22.12","ks",1,null,0]
[null,"Montáž",null,null,"ks",1,null,0]
["2.13","Výfuková protidešťová žaluzie se sítem a rámem do potrubí; rozměr 1600x300 mm; mater. elexovaný hliník;\nodstín RAL dle stávajících žaluzií;\nmnožství vzduchu 3550 m3/h\nmax. tlaková ztráta 25 Pa",null,"43.22.12","ks",1,null,0]
[null,"Montáž",null,null,"ks",1,null,0]
["2.14","Pružná manžeta kruhová pro napojovací hrdla větrací jednotky průměr D250 mm, délka 100 ÷ 150 mm",null,"43.22.12","ks",4,null,0]
[null,"Montáž",null,null,"ks",4,null,0]
["2.15","Ohebné potrubí s hlukovou izolací průměr D250 mm\nútlum v oktávách\n63       125     250    500    1000    2000   4000   8000 Hz\n19,2   20,3   16,6    14,8   15,1     15,9    21,2   18,0   dB",null,"43.22.12","bm",2,null,0]
[null,"Montáž",null,null,"bm",2,null,0]
["2.16","Ohebné potrubí s hlukovou izolací průměr D200 mm\nútlum v oktávách\n63       125     250    500    1000    2000   4000   8000 Hz\n19,4   20,6   16,8    15,0   15,1     15,7    21,1   17,9   dB",null,"43.22.12","bm",3,null,0]
[null,"Montáž",null,"43.22.12","bm",3,null,0]
[null,"Vzduchotechnické potrubí čtyřhranné skupiny I.\nz pozinkovaného plechu"]
["2.17","Do obvodu 1050 mm  100% tvarovek",null,"43.22.12","bm",1,null,{"$f":"F83*G83","v":0}]
["2.18","Do obvodu 1500 mm  20% tvarovek",null,"43.22.12","bm",50,null,{"$f":"F84*G84","v":0}]
["2.19","Do obvodu 1890 mm  30% tvarovek",null,"43.22.12","bm",3,null,{"$f":"F85*G85","v":0}]
[null,"Vzduchotechnické potrubí kruhové skupiny I.\nz pozinkovaného plechu"]
["2.20","Do průměru D200 rovné",null,"43.22.12","bm",4,null,{"$f":"F87*G87","v":0}]
["2.21","Do průměru D250 30% tvarovek",null,"43.22.12","bm",9,null,{"$f":"F88*G88","v":0}]
["2.22","Do průměru D315 20% tvarovek",null,"43.22.12","bm",5,null,{"$f":"F89*G89","v":0}]
[null,"Montáž potrubí"]
[null,"Čtyřhranné potrubí do obvodu 1050 mm 100% tvarovek",null,null,"bm",1,null,{"$f":"F91*G91","v":0}]
[null,"Čtyřhranné potrubí do obvodu 1500 mm 20% tvarovek",null,null,"bm",50,null,0]
[null,"Čtyřhranné potrubí do obvodu 1890 mm 30% tvarovek",null,null,"bm",3,null,0]
[null,"Kruhové potrubí průměru D200 mm, rovné",null,null,"bm",4,null,0]
[null,"Kruhové potrubí průměru D250 mm 30% tvarovek",null,null,"bm",9,null,0]
[null,"Kruhové potrubí průměru D315 mm 20% tvarovek",null,null,"bm",5,null,0]
["2.23","Zaslepení kruhového potrubí průměr D160",null,"43.22.12","ks",2,null,0]
["2.24","Tepelná izolace potrubí vzduchu rohožemi z minerální plsti tl. 4 cm s Al fólií, měrná hmotnost   80 kg/m3",null,"43.29.11","m2",94,null,0]
[null,"Montáž tepelné izolace",null,null,"m2",94,null,0]
["2.25","Demontáž části stávajícího potrubí a elementů do šrotu",null,"43.22.12"]
[null,"Demontáž větrací jednotky VAM 500",null,null,"ks",1,null,{"$f":"F101*G101","v":0}]
[null,"Demontáž kruhové klapky se servopohonem D100 mm",null,null,"ks",1,null,0]
[null,"Demontáž regulátoru konstantního průtoku D100",null,null,"ks",1,null,0]
[null,"Demontáž uzavírací klapky se servopohonem D100",null,null,"ks",1,null,0]
[null,"Demontáž uzavírací klapky se servopohonem D200",null,null,"ks",1,null,0]
[null,"Demontáž uzavírací klapky se servopohonem 200x200",null,null,"ks",1,null,0]
[null,"Demontáž pružných manžet se čtyřhrannou přírubou",null,null,"ks",2,null,0]
[null,"Demontáž pružných manžet s kruhovou přírubou",null,null,"ks",4,null,0]
[null,"Demontáž flexibilních vzduchovodů",null,null,"bm",4,null,0]
[null,"Demontáž přívodní vyústky v m.č.1.38",null,null,"ks",1,null,0]
[null,"Demontáž odvodní vyústky v m.č. 1.38",null,null,"ks",1,null,0]
[null,"Demontáž protidešťové žaluzie 700 x 300",null,null,"ks",1,null,0]
[null,"Demontáž protidešťové žaluzie 1400 x 300",null,null,"ks",1,null,0]
[null,"Demontáž stávajícího potrubí do šrotu vč. izolací",null,null,"m2",60,null,0]
[null,"Celkem",null,null,null,null,null,{"$f":"SUM(H47:H114)","v":0}]
["ZAŘÍZENÍ č. 3 - Větrání chodeb v 1.PP"]
[null,"Doplnění ventilátoru pro m.č. 1.47 a m.č. 1.72"]
["2018-01-03","Ventilátor do kruhového potrubí\nmax. množství čerstvého vzduchu 400 m3/h;\nexterní tlak 130 Pa\nventilátory řízené EC motory Pi = 60 W\npřipojovací rozměr průměr 160 mm\nhlukové parametry\nsání         62 dB(A)\nvýtlak     62 dB(A)\nokolí        45 dB(A)",null,"28.25.2","ks",1,null,{"$f":"F118*G118","v":0}]
[null,"Montáž",null,null,"ks",1,null,0]
["2018-02-03","Filtrační kazeta s víkem se zámky a výměnnným rámem s filtrační vložkou G3; max. množství vzduchu 400 m3/h\nmateriál provedení: pozinkovaná ocel\nmax. počáteční tlaková ztráta 25 Pa\npřipojovací rozměr průměr 160 mm",null,"43.22.12","ks",1,null,0]
[null,"Montáž",null,null,"ks",1,null,0]
["2018-03-03","Pružná manžeta kruhová pro napojovací hrdla ventilátoru průměr D160 mm, délka 100 ÷ 150 mm",null,"43.22.12","ks",2,null,0]
[null,"Montáž",null,null,"ks",2,null,0]
["3.4","Vložka tlumiče hluku š 100 x v 250 x 1000 mm\ns náběhovými hranami\nútlum v oktávách\n63  125   250   500    1000    2000   4000   8000 Hz\n5      5       11      21       40         42       28         19   dB",null,"43.22.12","ks",3,null,0]
[null,"Montáž",null,null,"ks",18,null,0]
["3.5","Flexibilní tlumič hluku kruhový D160 mm - délka 1 m\nútlum v oktávách\n63    125     250    500    1000    2000   4000   8000 Hz\n7,2   22,5  28,3    25,6   27,9     32,0     23,4      16,3   dB",null,"43.22.12","ks",1,null,0]
[null,"Montáž",null,null,"ks",1,null,0]
["3.6","Servisní dvířka do čtyřhranného potrubí\nrozměr 400 x 300 mm, materiál: pozinkovaný plech",null,"43.22.12","ks",1,null,0]
[null,"Montáž",null,null,"ks",1,null,0]
["3.7\n(KL3d)","Regulační klapka do čtyřhranného potrubí\ns přípravou pro servopohon  5 Nm\n(servopohon dodávka MaR)\npřipojovací rozměr 200x200 mm\nmax. množství vzduchu 400 m3/h\nmateriál provedení pozinovaný plech",null,"43.22.12","ks",1,null,0]
[null,"Montáž",null,null,"ks",1,null,0]
["3.8\n(KL3e)","Regulační klapka do čtyřhranného potrubí\ns přípravou pro servopohon  5 Nm\n(servopohon dodávka MaR)\npřipojovací rozměr 200x200 mm\nmax. množství vzduchu 400 m3/h\nmateriál provedení pozinovaný plech",null,"43.22.12","ks",1,null,0]
[null,"Montáž",null,null,"ks",1,null,0]
["3.9","Odvodní element s pevnými lamelami\ndo SDK podhledu 600 x 600 mm\nrozměr čelní desky 400 x 400 mm, napojení na potrubí\nmnožství vzduchu 400 m3/h; max tlaková ztráta 10 Pa\nmateriál elexovaný hliník, odstín dle podhledových desek",null,"43.22.12","ks",1,null,0]
[null,"Montáž",null,null,"ks",1,null,0]
["3.10","Pružná manžeta čtyřhranná pro napojení nasávací mřížky v podhledu\nrozměr 200 x 200 mm, délka 80 ÷ 150 mm",null,"43.22.12","ks",1,null,0]
[null,"Montáž",null,null,"ks",1,null,0]
["3.11","Ohebné potrubí s hlukovou izolací průměr D160 mm\nútlum v oktávách\n63       125     250    500    1000    2000   4000   8000 Hz\n19,4   20,6   16,8    15,0   15,1     15,7    21,1   17,9   dB",null,"43.22.12","bm",1,null,0]
[null,"Montáž",null,null,"bm",1,null,0]
["3.12","Ohebné potrubí s hlukovou izolací průměr D200 mm\nútlum v oktávách\n63       125     250    500    1000    2000   4000   8000 Hz\n19,4   20,6   16,8    15,0   15,1     15,7    21,1   17,9   dB",null,"43.22.12","bm",1,null,0]
[null,"Montáž",null,null,"bm",1,null,0]
[null,"Vzduchotechnické potrubí čtyřhranné skupiny I.\nz pozinkovaného plechu"]
["3.13","Do obvodu 1050 mm,  40% tvarovek",null,"43.22.12","bm",1,null,{"$f":"F143*G143","v":0}]
["3.14","Do obvodu 1500 mm,  20% tvarovek",null,"43.22.12","bm",4,null,{"$f":"F144*G144","v":0}]
["3.15","Do obvodu 1890 mm,  30% tvarovek",null,"43.22.12","bm",1,null,{"$f":"F145*G145","v":0}]
[null,"Vzduchotechnické potrubí kruhové skupiny I.\nz pozinkovaného plechu"]
["3.16","Průměr 160 mm, rovné",null,"43.22.12","bm",1,null,{"$f":"F147*G147","v":0}]
[null,"Montáž potrubí"]
[null,"Čtyřhranné potrubí do obvodu 1050 mm 40% tvarovek",null,null,"bm",1,null,{"$f":"F149*G149","v":0}]
[null,"Čtyřhranné potrubí do obvodu 1500 mm 20% tvarovek",null,null,"bm",4,null,0]
[null,"Čtyřhranné potrubí do obvodu 1890 mm 30% tvarovek",null,null,"bm",1,null,0]
[null,"Kruhové potrubí průměru D160 mm, rovné",null,null,"bm",1,null,0]
["3.17","Tepelná izolace potrubí vzduchu pásy z minerální plsti\ntl. 4 cm s Al fólií, měrná hmotnost   40 kg/m3",null,"43.29.11","m2",9,null,0]
[null,"Montáž tepelné izolace",null,null,"m2",9,null,0]
["3.18","Demontáž části stávajícího potrubí do šrotu",null,"43.22.12"]
[null,"Demontáž čtyřhranného potrubí",null,null,"m2",2,null,{"$f":"F156*G156","v":0}]
[null,"Demontáž kruhového potrubí",null,null,"m2",3,null,{"$f":"F157*G157","v":0}]
[null,"Celkem",null,null,null,null,null,{"$f":"SUM(H117:H157)","v":0}]
["ZAŘÍZENÍ č. 4 (E1.1-1a) - Klimatizace fakultního foyer a student. snackbaru"]
[null,"Náhrada kanálových jednotek pro m.č. 1.20 a m.č. 1.38"]
["E1.1-1a.1.1","Systém klimatizace s proměnným průtokem chladiva (VRF) určený pro chlazení a monovalentní vytápění s možností ekvitermního řízení vypařovací teploty v rozsahu 6°C až 16°C a kondenzační teploty 43°C až 49°C na základě venkovní teploty vzduchu. Proměnná teplota slouží k minimalizaci provozních nákladů, maximálnímu zvýšení celoroční účinnosti a komfortnímu zvýšení teploty vyfukovaného vzduchu při maximálním snížení odvlhčovacího výkonu v režimu chlazení.\nKondenzační jednotka s plynule regulovatelnými scroll kompresory a akumulačním výměníkem tepla pro nepřetržité vytápění během odtávacího cyklu.\nVenkovní kondenzační jednotka modul vel.14HP,\nindex připojitelnosti 101%, chladivo R410A \ntepelné čerp. s nepřetržitým vytápěním (topný kabel)\njmenovitý chladící výkon Qch = 40,0 kW (min.ESEER 6,83),\njmenovitý topný výkon Qt = 45,0 kW (min.COP 4,02),\nel. příkon při chlazení Pi = 11,0 kW (min. EER 3,64) při ekviterm. řízení vypař.teploty (Ti=19°C WB/Tex=35°C DB)\nel. příkon při vytápění Pi = 11,2 kW (min. COP 4,02) při ekviterm. řízení vypař.teploty (Ti=20°C WB/Tex=6°C WB)\nakustický výkon Lw: max. 81 dB(A)\nakustický tlak Lp (1m od jednotky): max. 61 dB(A)\nprovozní rozsah chlazení: venkovní te = -5 až 43°C\nprovozní rozsah vytápění: venkovní te = -20 až 15,5°C\nmax. rozměry 1250 x 800 x 1700 (š x hl x v)\nmax. hmotnost  370 kg",null,"28.25.12","ks",1,null,{"$f":"F161*G161","v":0}]
["E1.1-1a.2.1","Vnitřní kazetová jednotka s distribucí vzduchu v rozsahu 360° (3x3) s ventilátorem a kondenzátním čerpadlem\njmenovitý chladící výkon Qch = 7,1 kW,\njmenovitý topný výkon Qt = 8,0 kW,\ncelkový/citelný chladící výkon při vypař. teplotě Tv=6°C\nQthc = 6,5 kW / Qshc = 5,2 kW (Ti=26°C / 45% r.v.)\ncelkový/citelný chladící výkon při vypař. teplotě Tv=9°C\nQthc = 4,9 kW / Qshc = 4,4 kW (Ti=26°C / 45% r.v.)\njmen. elektr. příkon při chlazení Pi=61W (230V / 50Hz)\nakust. tlak Lp (1m od jednotky) vysoký/jmenov./nízký:\nmax. 35 / 33 / 30 dB(A)\nmax.rozměry 850 x 850 x 210 mm ( š x d x v)\nmax. instalační výška jednotky : 220 mm\nservisní přístup ke svorkovnici přes dekorační panel",null,"28.25.12","ks",1,null,0]
["E1.1-1a.2.2\n-\nE1.1-1a.2.6","Vnitřní kazetová jednotka s distribucí vzduchu v rozsahu 360° (3x3) s ventilátorem a kondenzátním čerpadlem\njmenovitý chladící výkon Qch = 5,6 kW,\njmenovitý topný výkon Qt = 6,3 kW,\ncelkový/citelný chladící výkon při vypař. teplotě Tv=6°C\nQthc = 5,1 kW / Qshc = 4,1 kW (Ti=26°C / 45% r.v.)\ncelkový/citelný chladící výkon při vypař. teplotě Tv=9°C\nQthc = 3,8 kW / Qshc = 3,4 kW (Ti=26°C / 45% r.v.)\njmen. elektr. příkon při chlazení Pi=53W (230V / 50Hz)\nakust. tlak Lp (1m od jednotky) vysoký/jmenov./nízký:\nmax. 33 / 31 / 29 dB(A)\nmax.rozměry 850 x 850 x 210 mm ( š x d x v)\nmax. instalační výška jednotky : 220 mm\nservisní přístup ke svorkovnici přes dekorační panel",null,"28.25.12","ks",5,null,0]
["E1.1-1a.2.7","Vnitřní 2-cestná kazetová jednotka s DC ventilátorem a kondenzátním čerpadlem\njmenovitý chladící výkon Qch = 4,5 kW,\njmenovitý topný výkon Qt = 5,0 kW,\ncelkový/citelný chladící výkon při vypař. teplotě Tv=6°C\nQthc = 4,1 kW / Qshc = 3,3 kW (Ti=26°C / 45% r.v.)\ncelkový/citelný chladící výkon při vypař. teplotě Tv=9°C\nQthc = 3,0 kW / Qshc = 2,7 kW (Ti=26°C / 45% r.v.)\nmax.rozměry 620 x 780 x 310 mm ( š x d x v)\njmen. elektr. příkon při chlazení Pi=41W (230V / 50Hz)\nakust. tlak Lp (1m od jednotky) vysoký/jmenov./nízký:\nmax. 36 / 33 / 31 dB(A)\nmax. instalační výška jednotky : 350 mm",null,"28.25.12","ks",1,null,0]
["E1.1-1a.2.8","Dekorační panel pro kazetovou jednotku s kruhovým výdechem",null,"28.25.12","ks",6,null,0]
["E1.1-1a.2.9","Dekorační panel pro kazetovou jednotku se dvěma výdechy",null,"28.25.12","ks",1,null,0]
[null,"Kabelový ovladač pro kazetovou jednotku se 2 výdechy",null,"43.22.12","ks",1,null,0]
[null,"Speciální Cu tvarovka pro rozbočení potrubí chladiva a oleje - výkonový index 200",null,"43.22.12","ks",4,null,0]
[null,"Speciální Cu tvarovka pro rozbočení potrubí chladiva a oleje - výkonový index 201÷290",null,"43.22.12","ks",1,null,0]
[null,"Speciální Cu tvarovka pro rozbočení potrubí chladiva a oleje - výkonový index 291÷640",null,"43.22.12","ks",1,null,0]
[null,"Cu potrubí chladiva izolované syntetickým kaučukem\nvlastnosti tepelné izolace:\ntepelná vodicost l ≤ 0,033 W/m.K při teplotě 0°C\nsoučinitel difúzního odporu m ≥ 10000\ntrubky f 6,4 mm",null,"43.22.12","bm",52,null,0]
[null,"Cu potrubí chladiva izolované syntetickým kaučukem\nvlastnosti tepelné izolace:\ntepelná vodicost l ≤ 0,033 W/m.K při teplotě 0°C\nsoučinitel difúzního odporu m ≥ 10000\ntrubky f 9,5 mm",null,"43.22.12","bm",45,null,0]
[null,"Cu potrubí chladiva izolované syntetickým kaučukem\nvlastnosti tepelné izolace:\ntepelná vodicost l ≤ 0,033 W/m.K při teplotě 0°C\nsoučinitel difúzního odporu m ≥ 10000\ntrubky f 12,7 mm",null,"43.22.12","bm",52,null,0]
[null,"Cu potrubí chladiva izolované syntetickým kaučukem\nvlastnosti tepelné izolace:\ntepelná vodicost l ≤ 0,033 W/m.K při teplotě 0°C\nsoučinitel difúzního odporu m ≥ 10000\ntrubky f 15,9 mm",null,"43.22.12","bm",105,null,0]
[null,"Cu potrubí chladiva izolované syntetickým kaučukem\nvlastnosti tepelné izolace:\ntepelná vodicost l ≤ 0,033 W/m.K při teplotě 0°C\nsoučinitel difúzního odporu m ≥ 10000\ntrubky f 19,1 mm",null,"43.22.12","bm",5,null,0]
[null,"Cu potrubí chladiva izolované syntetickým kaučukem\nvlastnosti tepelné izolace:\ntepelná vodicost l ≤ 0,033 W/m.K při teplotě 0°C\nsoučinitel difúzního odporu m ≥ 10000\ntrubky f 22,2 mm",null,"43.22.12","bm",3,null,0]
[null,"Cu potrubí chladiva izolované syntetickým kaučukem\nvlastnosti tepelné izolace:\ntepelná vodicost l ≤ 0,033 W/m.K při teplotě 0°C\nsoučinitel difúzního odporu m ≥ 10000\ntrubky f 28,5 mm",null,"43.22.12","bm",68,null,0]
[null,"Pozn: Měděné potrubí musí být dodáno v souladu s\nČSN EN 12735-1. Pro venkovní instalaci potrubí chladiva musí být použita tepelná izolace s povrchovou úpravou odolnou UV záření."]
[null,"Mars koryta pro potrubí chladiva na střeše - stávající",null,null,"bm",0,null,{"$f":"F179*G179","v":0}]
[null,"Požární ucpávka pro potrubí chladiva při prostupu požárně dělícími konstrukcemi",null,null,"ks",1,null,0]
[null,"Zhotovení prostupu ve stěně nebo stropu pro potrubí chladiva včetně následného zapravení",null,null,"ks",3,null,0]
[null,"Komunikační kabeláž k propojení venkovní jednotky a\n7 ks  vnitřních jednotek, vč. 5 ks jednotek větracích",null,"43.22.12","bm",235,null,0]
[null,"Komunikační kabeláž k propojení nástěnného ovladače a vnitřní jednotky",null,"43.22.12","bm",7,null,0]
[null,"Demontáž stávající venkovní jednotky",null,null,"ks",1,null,0]
[null,"Demontáž stávajících vnitřních jednotek",null,null,"ks",5,null,0]
[null,"Demontáž stávajícího potrubí chladiva systému E1.1-1a",null,null,"kpl",1,null,0]
[null,"Odsátí chladiva R410A",null,null,"kpl",1,null,0]
[null,"Ekologická likvidace chladiva",null,null,"kg",20,null,0]
[null,"Ekologická likvidace demontovaného zařízení a potrubí",null,null,"kg",650,null,0]
[null,"Montáž, uvedení do provozu",null,null,"kpl",1,null,0]
[null,"Doplnění chladiva R410A",null,"43.22.12","kg",18,null,0]
[null,"Provozní zkouška",null,null,"kpl",1,null,0]
[null,"Zkouška těsnosti",null,null,"kpl",1,null,0]
[null,"Evidenční knihy zařízení s chladivem, štítky",null,null,"kpl",1,null,0]
[null,"Celkem",null,null,null,null,null,{"$f":"SUM(H160:H194)","v":0}]
["ZAŘÍZENÍ č.5 (E1.1-1c) - Klimatizace místností v 1.PP a 1.NP (jihovýchod)"]
[null,"Výměna a doplnění parapetních jednotek pro m.č. 1.90 - 1.95, m.č. 1.65 v 1.NP a výměna kanálové jednotky v m.č. 01.47 v 1.PP"]
["E1.1-1c.1.1","Systém klimatizace s proměnným průtokem chladiva (VRF) určený pro chlazení a monovalentní vytápění s možností ekvitermního řízení vypařovací teploty v rozsahu 6°C až 16°C a kondenzační teploty 43°C až 49°C na základě venkovní teploty vzduchu. Proměnná teplota slouží k minimalizaci provozních nákladů, maximálnímu zvýšení celoroční účinnosti a komfortnímu zvýšení teploty vyfukovaného vzduchu při maximálním snížení odvlhčovacího výkonu v režimu chlazení.\nKondenzační jednotka s plynule regulovatelnými scroll kompresory a akumulačním výměníkem tepla pro nepřetržité vytápění během odtávacího cyklu.\nVenkovní kondenzační jednotka modul vel.10HP,\nindex připojitelnosti 102%, chladivo R410A \ntepelné čerp. s nepřetržitým vytápěním (topný kabel)\njmenovitý chladící výkon Qch = 28,0 kW (min.ESEER 7,2),\njmenovitý topný výkon Qt = 31,5 kW (min.COP 4,27),\nel. příkon při chlazení Pi = 7,29 kW (min. EER 3,73) při ekviterm. řízení vypař.teploty (Ti=19°C WB/Tex=35°C DB)\nel. příkon při vytápění Pi = 7,38 kW (min. COP 4,27) při ekviterm. řízení vypař.teploty (Ti=20°C WB/Tex=6°C WB)\nakustický výkon Lw: max. 79 dB(A)\nakustický tlak Lp (1m od jednotky): max. 58 dB(A)\nprovozní rozsah chlazení: venkovní te = -5 až 43°C\nprovozní rozsah vytápění: venkovní te = -20 až 15,5°C\nmax. rozměry 950 x 800 x 1700 (š x hl x v)\nmax. hmotnost  270 kg",null,"28.25.12","ks",1,null,{"$f":"F198*G198","v":0}]
["E1.1-1c.2.1\n-\nE1.1-1c.2.2","Vnitřní parapetní jednotka typ FXLQ25P\nQch, chlazení = 2,8 kW, Pi=0,049 kW / 230 V\nQt, topení = 3,2 kW, Pi=0,0049 kW / 230 V","DAIKIN","stávající","ks",2,"-","-"]
["E1.1-1c.2.3","Středotlaká vnitřní kanálová (mezistropní) jednotka\ns automatickým nastavením charakteristiky ventilátoru\n(ESP až 150 Pa) a kondenzátním čerpadlem\njmenovitý chladící výkon Qch = 3,6 kW,\njmenovitý topný výkon Qt = 4,0 kW,\ncelkový/citelný chladící výkon při vypař. teplotě Tv=6°C\nQthc = 3,3 kW / Qshc = 2,6 kW (Ti=26°C / 45% r.v.)\ncelkový/citelný chladící výkon při vypař. teplotě Tv=9°C\nQthc = 2,7 kW / Qshc = 2,3 kW (Ti=26°C / 45% r.v.)\nmax.rozměry 550 x 800 x 250 mm ( š x d x v)\njmen. elektr. příkon při chlazení Pi=45W (230V / 50Hz)\nakust. tlak Lp (1m od jednotky) vysoký/střední/nízký:\nmax. 31 / 29 / 26 dB(A)\nhmotnost jednotky max 30 kg",null,"28.25.12","ks",1,null,{"$f":"F200*G200","v":0}]
["E1.1-1c.2.4\n-\nE1.1-1c.2.10","Vnitřní opláštěná parapetní jednotka s ventilátorem a kondenzátním čerpadlem\njmenovitý chladící výkon Qch = 2,8 kW,\njmenovitý topný výkon Qt = 3,2 kW,\ncelkový/citelný chladící výkon při vypař. teplotě Tv=6°C\nQthc = 2,6 kW / Qshc = 2,0 kW (Ti=26°C / 45% r.v.)\ncelkový/citelný chladící výkon při vypař. teplotě Tv=9°C\nQthc = 1,9 kW / Qshc = 1,7 kW (Ti=26°C / 45% r.v.)\nmax.rozměry 240 x 1000 x 600 mm ( hl x d x v)\njmen. elektr. příkon při chlazení Pi=49W (230V / 50Hz)\nakustický tlak Lp (1m od jednotky) vysoký/nízký:\nmax. 35 / 32 dB(A)\nbarevné provedení : opláštění RAL 9010, mřížka RAL 7011",null,"28.25.12","ks",7,null,0]
[null,"Kabelový ovladač pro parapetní jednotky",null,"43.22.12","ks",8,null,0]
[null,"Adapter pro okenní a kartový kontakt",null,"43.22.12","ks",8,null,0]
[null,"Speciální Cu tvarovka pro rozbočení potrubí chladiva a oleje - výkonový index 200",null,"43.22.12","ks",7,null,0]
[null,"Speciální Cu tvarovka pro rozbočení potrubí chladiva a oleje - výkonový index 201÷290",null,"43.22.12","ks",1,null,0]
[null,"Cu potrubí chladiva izolované syntetickým kaučukem\nvlastnosti tepelné izolace:\ntepelná vodicost l ≤ 0,033 W/m.K při teplotě 0°C\nsoučinitel difúzního odporu m ≥ 10000\ntrubky f 6,4 mm",null,"43.22.12","bm",78,null,0]
[null,"Cu potrubí chladiva izolované syntetickým kaučukem\nvlastnosti tepelné izolace:\ntepelná vodicost l ≤ 0,033 W/m.K při teplotě 0°C\nsoučinitel difúzního odporu m ≥ 10000\ntrubky f 9,5 mm",null,"43.22.12","bm",110,null,0]
[null,"Cu potrubí chladiva izolované syntetickým kaučukem\nvlastnosti tepelné izolace:\ntepelná vodicost l ≤ 0,033 W/m.K při teplotě 0°C\nsoučinitel difúzního odporu m ≥ 10000\ntrubky f 12,7 mm",null,"43.22.12","bm",78,null,0]
[null,"Cu potrubí chladiva izolované syntetickým kaučukem\nvlastnosti tepelné izolace:\ntepelná vodicost l ≤ 0,033 W/m.K při teplotě 0°C\nsoučinitel difúzního odporu m ≥ 10000\ntrubky f 15,9 mm",null,"43.22.12","bm",70,null,0]
[null,"Cu potrubí chladiva izolované syntetickým kaučukem\nvlastnosti tepelné izolace:\ntepelná vodicost l ≤ 0,033 W/m.K při teplotě 0°C\nsoučinitel difúzního odporu m ≥ 10000\ntrubky f 19,1 mm",null,"43.22.12","bm",4,null,0]
[null,"Cu potrubí chladiva izolované syntetickým kaučukem\nvlastnosti tepelné izolace:\ntepelná vodicost l ≤ 0,033 W/m.K při teplotě 0°C\nsoučinitel difúzního odporu m ≥ 10000\ntrubky f 22,2 mm",null,"43.22.12","bm",38,null,0]
[null,"Pozn: Měděné potrubí musí být dodáno v souladu s\nČSN EN 12735-1. Pro venkovní instalaci potrubí chladiva musí být použita tepelná izolace s povrchovou úpravou odolnou UV záření."]
[null,"Mars koryta pro potrubí chladiva na střeše - stávající",null,null,"bm",0,null,{"$f":"F213*G213","v":0}]
[null,"Požární ucpávka pro potrubí chladiva při prostupu požárně dělícími konstrukcemi",null,null,"ks",8,null,0]
[null,"Zhotovení prostupu ve stěně nebo stropu pro potrubí chladiva včetně následného zapravení",null,null,"ks",16,null,0]
[null,"Komunikační kabeláž k propojení venkovní jednotky a\nvnitřních jednotek",null,"43.22.12","bm",215,null,0]
[null,"Komunikační kabeláž k propojení nástěnných ovladačů a vnitřních jednotek (využita stávající kabeláž)",null,"43.22.12","bm",0,null,0]
[null,"Doplnění chladiva R410A",null,"43.22.12","kg",11,null,0]
[null,"Demontáž stávající venkovní jednotky",null,null,"ks",1,null,0]
[null,"Demontáž stávajících vnitřních jednotek",null,null,"ks",8,null,0]
[null,"Demontáž části stávajícího potrubí chladiva\nsystému E1.1-1c (Cu potrubí z m.č. 01.84 nedotčeno)",null,null,"kpl",1,null,0]
[null,"Odsátí chladiva R410A",null,null,"kpl",1,null,0]
[null,"Ekologická likvidace chladiva",null,null,"kg",10,null,0]
[null,"Ekologická likvidace demontovaného zařízení a potrubí",null,null,"kg",550,null,0]
[null,"Montáž, uvedení do provozu",null,null,"kpl",1,null,0]
[null,"Provozní zkouška",null,null,"kpl",1,null,0]
[null,"Zkouška těsnosti",null,null,"kpl",1,null,0]
[null,"Evidenční knihy zařízení s chladivem, štítky",null,null,"kpl",1,null,0]
[null,"Celkem",null,null,null,null,null,{"$f":"SUM(H197:H228)","v":0}]
["Systém centrálního řízení a monitoringu - BMS protokol (BACnet)"]
[null,"Centrální řízení bude doplněno o rozhraní BACnet, pro dalších 128 adres."]
["6.1","Základní deska pro vnitřní jednotky systémů\n- 2 porty s max. počtem 64",null,"43.22.12","ks",1,null,{"$f":"F232*G232","v":0}]
[null,"Poznámka:\nNově instalované systémy s proměnným průtokem chladiva E1-1.1a a E1-1.1c budou komunikačně propoje-ny 2-žilovým vodičem 2x1 mm2 se stávajícími systémy instalovanými v letech 2013 a 2015 a společně připojeny k BMS bráně pro centrální ovládání a monitoring. Současně bude instalací základní desky vytvořena rezerva pro zapojení nových klimatizačních jednotek pro chlazení kanceláří ve 2. až 6.NP severní části jižního křídla objektu Q."]
["6.2","Propojovací kabeláž pro centrální BMS řízení, 2-žilový vodič JYSTY 2x1 mm2",null,"43.22.12","bm",95,null,{"$f":"F234*G234","v":0}]
[null,"Pro snížení výkonů (el.příkonů) v době energetické špičky bude pro stávající a nově instalované systémy dodán společný adaptér pro vzdálené řízení ze systému MaR. Těmito dodatečně instalovanými adaptéry, které budou připojeny do stávající komunikace venkovních jednotek lze vzdáleně ovládat snížení akustického tlaku venkovních jednotek. Adaptéry budou umístěny ve venkovní jednotce. Bude propojeno až 10-systémů s proměnným průtokem chladiva na 1-adaptér."]
["6.3","Adaptér externí regulace pro venkovní jednotku-hlavní budova a východní křídlo pavilonu Q, osazení 6.NP - střecha, jihovýchod (E1)\n- limitace výkonu pro 3-úrovně omezení  0%-40%-95% (rozsah 40%-95% lze ovládat po 5% bodech)\n- vzdálené ovládání a aktivování nízkohlučného režimu",null,"43.22.12","ks",1,null,{"$f":"F236*G236","v":0}]
["6.4","Instalační box adaptéru - pro instalaci k venkovní jednotce",null,"43.22.12","ks",1,null,{"$f":"F237*G237","v":0}]
[null,"Celkem",null,null,null,null,null,{"$f":"SUM(H230:H237)","v":0}]
["Zpracování projektové dokumentace (VZ, ZT)"]
["7.1","Dokumentace skutečného provedení stavby",null,null,"kpl",1,null,{"$f":"F240*G240","v":0}]
[null,"Celkem",null,null,null,null,null,{"$f":"H240","v":0}]
["Ostatní položky"]
["8.1","Plán BOZP",null,null,"ks",1,null,{"$f":"F243*G243","v":0}]
["8.2","Jeřáb",null,null,"ks",1,null,{"$f":"F244*G244","v":0}]
["8.3","Zábor komunikace",null,null,"ks",1,null,{"$f":"F245*G245","v":0}]
["8.4","Povolení pro umístění jeřábu",null,null,"ks",1,null,{"$f":"F246*G246","v":0}]
["8.5","Projekt pro zábor komunikace",null,null,"ks",1,null,{"$f":"F247*G247","v":0}]
[null,"Celkem",null,null,null,null,null,{"$f":"SUM(H242:H247)","v":0}]

{"sheet":"ZT102_Slepy_rozpocet","index":5,"n_rows":110,"n_cols":8,"rows_kept":110,"cut":false,"hidden":false,"merged":[]}
[]
[]
[null,null,"REKAPITULACE"]
[]
[null,null,"ZDRAVOTECHNICKÉ INSTALACE 800 - 721"]
[1,null,"A 01 - Vnitřní kanalizace",null,null,null,null,{"$f":"H89","v":0}]
[2,null,"A 02 - Vnitřní vodovod",null,null,null,null,0]
[3,null,"A 03 - Vnitřní plynovod",null,null,null,null,0]
[4,null,"A 04 - Strojní zařízení",null,null,null,null,0]
[5,null,"A 05 - Zařizovací předměty",null,null,null,null,0]
[]
[" ",null,"Zdravotechnické instalace - součet",null,null,null,null,{"$f":"SUM(H6:H11)","v":0}]
[]
[6,null,"DOPLŇKOVÉ KONSTRUKCE  800 - 767",null,null,null,null,{"$f":"H102","v":0}]
[" "]
[7,null,"TEPELNÉ  IZOLACE  800 - 713",null,null,null,null,0]
[" "]
[8,null,"NÁTĚRY  800 - 783",null,null,null,null,{"$f":"H110","v":0}]
[]
[]
[null,null,"CELKEM",null,null,null,null,{"$f":"SUM(H12:H20)","v":0}]
[]
[]
[]
[]
[]
[]
[]
[]
[]
[]
[]
[]
[]
[]
[]
[]
[]
[]
[]
[]
[]
[]
[]
[null,null,"Poznámka :"]
[null,null,"Ceny jsou uvedeny bez DPH."]
[]
[]
[]
[]
[null,null,"V  "]
[]
[]
[]
[]
[]
[]
[]
["P.č.","Položka","Popis položky","Kód\nCZ-CPA","m.j.","počet","jedn. cena","cena celk."]
[null,null,"721 - KANALIZACE"]
[null,null,"Plastové potrubí kanalizace včetně všech potřebných tvarovek ( odbočky, oblouky, redukce atd. ), prořezu a spojovacích materiálů. Dodávka a montáž"]
[null,null,"připojovací potrubí"]
[1,"721 17-6102","DN 40","43.22.11","m",12,null,{"$f":"F63*G63","v":0}]
[]
[null,null,"kondenzátní potrubí plastové PVC-U - PN 10"]
[2,"722 17-2313","D 3/4\"","43.22.11","m",49,null,{"$f":"F66*G66","v":0}]
[]
[null,null,"Vyvedení odpadních výustek"]
[3,"721 19-4104","DN 32","43.22.11","ks",15,null,{"$f":"F69*G69","v":0}]
[]
[null,null,"Zkouška těsnosti kanalizace v objektech"]
[null,null,"kouřem"]
[4,"721 29-0123","do DN 300","43.22.11","m",61,null,{"$f":"F73*G73","v":0}]
[]
[null,null,"Dodávka plastových tvarovek"]
[5,"Nabídk. cena","Vodní zápachová uzávěrka pro VZT jednotky","43.22.11","ks",8,null,{"$f":"F76*G76","v":0}]
[]
[null,null,"Montáž a osazení plastového odpadního"]
[6,"Nabídk. cena","příslušenství","43.22.11","ks",{"$f":"SUM(F76:F77)","v":8},null,{"$f":"F79*G79","v":0}]
[]
[null,null,"Propojení nového a stávajícího potrubí"]
[7,"721 17-0915","do DN 50","43.22.11","ks",12,null,{"$f":"F82*G82","v":0}]
[]
[8,"Nabídk. cena","Stavební práce při montáži kanalizace","43.22.11","hod",5,null,{"$f":"F84*G84","v":0}]
[" "]
[null,null,"Přesun hmot pro vnitřní kanalizaci",null,null,null,null," "]
[9,"998 72-1201","v objektech do 6 m","43.22.11","%",{"$f":"SUM(H62:H86)","v":0},2.0500000000000001E-2,{"$f":"CEILING(PRODUCT(F87:G87),1)","v":0}]
[]
[null,null,"Vnitřní kanalizace - celkem",null,null,null,null,{"$f":"SUM(H62:H88)","v":0}]
[]
[]
[null,null,"DOPLŇKOVÉ KONSTRUKCE"]
[null,null,"Montáž atypických konstrukcí"]
[1,"767 99-5101","do hmotnosti 5 kg","43.22.11","kg",40,null,{"$f":"F94*G94","v":0}]
[]
[null,null,"Montáž atypických konstrukcí"]
[2,"Nabídk. cena","ocelových profilů","43.22.11","t",7.0000000000000007E-2,null,{"$f":"ROUND(F97*G97,0)","v":0}]
[]
[null,null,"Přesun hmot pro doplňkové konstrukce"]
[3,"998 76-7201","v objektech do 6 m","43.22.11","%",{"$f":"SUM(H93:H99)","v":0},1.37E-2,{"$f":"CEILING(PRODUCT(F100,G100),1)","v":0}]
[]
[null,null,"Doplňkové konstrukce - celkem",null,null,null,null,{"$f":"SUM(H93:H101)","v":0}]
[]
[]
[null,null,"NÁTĚRY"]
[null,null,"Nátěr doplňkových konstrukcí syntetický "]
[1,"783 22-6100","základní","43.22.11","m2",1,null,{"$f":"F107*G107","v":0}]
[2,"783 22-5100","krycí s 1x emailováním","43.22.11","m2",1,null,{"$f":"F108*G108","v":0}]
[]
[null,null,"Nátěry - celkem",null,null,null,null,{"$f":"CEILING(SUM(H107:H109),1)","v":0}]

{"sheet":"EL102_RN","index":6,"n_rows":13,"n_cols":4,"rows_kept":13,"cut":false,"hidden":false,"merged":[]}
[null,null,"REKAPITULACE "]
[null,null,"REKONSTRUKCE KLIMATIZACE OBJEKTU Q, větev c1"]
[]
[null,null,"SO03 Objekt Specializovaných výukových prostor"]
[null,null,"D1.4.3 Elektroinstalace"]
[]
[null,"Položka","Název","Celkem"]
[null,{"$f":"EL102_Slepy_rozpocet!A4","v":"1"},{"$f":"EL102_Slepy_rozpocet!B4","v":"ROZVADĚČE A SKŘÍNKY "},{"$f":"EL102_Slepy_rozpocet!J18","v":0}]
[null,{"$f":"EL102_Slepy_rozpocet!A20","v":"2"},{"$f":"EL102_Slepy_rozpocet!B20","v":"KABELY"},{"$f":"EL102_Slepy_rozpocet!J30","v":0}]
[null,{"$f":"EL102_Slepy_rozpocet!A32","v":"3"},{"$f":"EL102_Slepy_rozpocet!B32","v":"MONTÁŽNÍ MATERIÁL"},{"$f":"EL102_Slepy_rozpocet!J39","v":0}]
[null,{"$f":"EL102_Slepy_rozpocet!A41","v":"4"},{"$f":"EL102_Slepy_rozpocet!B41","v":"DEMONTÁŽE A OPĚTOVNÉ MONTÁŽE"},{"$f":"EL102_Slepy_rozpocet!J46","v":0}]
[null,{"$f":"EL102_Slepy_rozpocet!A48","v":"5"},{"$f":"EL102_Slepy_rozpocet!B48","v":"OSTATNÍ"},{"$f":"EL102_Slepy_rozpocet!J62","v":0}]
[null,null,"CELKEM bez DPH",{"$f":"SUM(D8:D12)","v":0}]

{"sheet":"EL102_Slepy_rozpocet","index":7,"n_rows":67,"n_cols":10,"rows_kept":67,"cut":false,"hidden":false,"merged":[]}
["Pořadové číslo","Popis položky","Název","Měrná","Množství","Jednotková cena","Jednotková cena ","Celková cena ","Celková cena ","Celková cena"]
[null,null,null,"jednotka",null,"dodávky","montáže","dodávky","montáže"]
[]
["1","ROZVADĚČE A SKŘÍNKY "]
[]
[null,"V položkách jsou započteny i náklady na případné sestavení dílců dříve demontovaných z důvodů dopravy, a dále usazení, vyvážení, upevnění montáž a zapojení demontovaných přístrojů a víka, kontolru spojů a jejich dotažení"]
[]
["1.1","Doplnění stávajícího rozvaděče RH pole 4",null,"kpt",1,null,null,{"$f":"F8*E8","v":0},{"$f":"G8*E8","v":0},{"$f":"H8+I8","v":0}]
[null,"Jistič B40/3",null,"ks",1,null,null,{"$f":"F9*E9","v":0},{"$f":"G9*E9","v":0},{"$f":"H9+I9","v":0}]
[null,"Pomocný materiál (spojovací materiál, kabelová oka a kabelové lisovací dutinky, štítky, návlečky na kabely…)",null,"kpt",1,null,null,0,0,0]
[]
["1.2","Úprava stávajícího rozvaděče RM07.1",null,"kpt",1,null,null,0,0,0]
[null,"Jistič C32/3",null,"ks",1,null,null,0,0,0]
[null,"Jistič C25/3",null,"ks",1,null,null,0,0,0]
[null,"Pomocný materiál (spojovací materiál, kabelová oka a kabelové lisovací dutinky, štítky, návlečky na kabely…)",null,"kpt",1,null,null,0,0,0]
[]
[]
["1","ROZVADĚČE A SKŘÍNKY CELKEM",null,null,null,null,null,null,null,{"$f":"SUM(J8:J15)","v":0}]
[]
["2","KABELY"]
[]
[null,"V položkách jsou započteny i náklady na naznačení trasy vedení, přípravu svitků a bubnů, položení přip. protahování vodičů, šňůr a kabelů, vyrovnání a vytvarování ohybů, zajištění konců proti poškození izolace, označení štítky a vyzkoušení izolačního stavu, spolu s pomocnými montážními pracemi a materiálem, ukončením kabelů na svorkovnici zařízení a v rozvaděči"]
[]
["2.1","CYKY-J 4x16 mm²","Kabel","m",200,null,null,{"$f":"F24*E24","v":0},{"$f":"G24*E24","v":0},{"$f":"H24+I24","v":0}]
["2.2","CYKY-J 5x6 mm²","Kabel","m",26,null,null,{"$f":"F25*E25","v":0},{"$f":"G25*E25","v":0},{"$f":"H25+I25","v":0}]
["2.3","CYY 4","Kabel","m",1500,null,null,{"$f":"F26*E26","v":0},{"$f":"G26*E26","v":0},{"$f":"H26+I26","v":0}]
["2.4","CYY 6","Kabel","m",1000,null,null,{"$f":"F27*E27","v":0},{"$f":"G27*E27","v":0},{"$f":"H27+I27","v":0}]
["2.5","CYY 25","Kabel","m",200,null,null,{"$f":"F28*E28","v":0},{"$f":"G28*E28","v":0},{"$f":"H28+I28","v":0}]
[]
["2","KABELY CELKEM",null,null,null,null,null,null,null,{"$f":"SUM(J24:J28)","v":0}]
[]
["3","MONTÁŽNÍ MATERIÁL"]
[]
[null,"V položkách jsou započteny i náklady na naznačení trasy vedení, přípravu svitků a bubnů, označení štítky, spolu s pomocnými montážními pracemi a materiálem"]
[]
["3.1","Kabelový žlab drátěný, pozinkovaný s víkem 62x50 mm, včetně nosných konstrukcí a spojovacích dílů","Montážní materiál","m",156,null,null,{"$f":"F36*E36","v":0},{"$f":"G36*E36","v":0},{"$f":"H36+I36","v":0}]
["3.2","Zapravení stavebních otvorů po protažení kabelů","Montážní materiál","kpt",1,null,null,{"$f":"F37*E37","v":0},{"$f":"G37*E37","v":0},{"$f":"H37+I37","v":0}]
[]
["3","MONTÁŽNÍ MATERIÁL CELKEM",null,null,null,null,null,null,null,{"$f":"SUM(J36:J37)","v":0}]
[]
["4","DEMONTÁŽE A OPĚTOVNÉ MONTÁŽE"]
[]
["4.1","Demontáž a opětovná montáž svítidel, reproduktorů, WiFi routerů a požárních hlásičů v místnosti č. 1.20 v polích s demontovanými podhledy","Demontáže a opětovné montáže","kpt",1,null,null,{"$f":"F43*E43","v":0},{"$f":"G43*E43","v":0},{"$f":"H43+I43","v":0}]
["4.2","Demontáž a opětovná montáž 3ks svítidel a požárního hlásiče v místnosti\nč. 1.38, kde bude plný pohled vyměněn za pohled rastrový","Demontáže a opětovné montáže","kpt",1,null,null,{"$f":"F44*E44","v":0},{"$f":"G44*E44","v":0},{"$f":"H44+I44","v":0}]
[]
["4","ZAŘÍZENÍ CELKEM",null,null,null,null,null,null,null,{"$f":"SUM(J43:J44)","v":0}]
[]
["5","OSTATNÍ"]
[]
["5.1","Informační systém - štítky","Ostatní","kpl.",1,null,null,{"$f":"F50*E50","v":0},{"$f":"G50*E50","v":0},{"$f":"H50+I50","v":0}]
["5.2","Zaškolení obsluhy, včetně předání katalogových listů a montážních návodů","Ostatní","hod",8,null,null,0,0,0]
["5.3","Revize el. zařízení vč. revizní zprávy a ujištění o prohlášení o shodě dodaných komponentů ","Ostatní","hod",24,null,null,0,0,0]
["5.4","Koordinace se správcem budovy - za účelem odpojení budovy od el. energie","Ostatní","hod",8,null,null,0,0,0]
["5.5","Koordinace se servisním technikem profese EPS - z důvodu revize zařízení, za účelem správného fungování po opětovné montáži požárních hlásičů","Ostatní","hod",24,null,null,0,0,0]
["5.6","Koordinace se servisním technikem profese slaboproudu -  důvodu revize zařízení, za účelem správného fungování po opětovné montáži reproduktorů a WiFi routerů","Ostatní","hod",16,null,null,0,0,0]
["5.7","Koordinace se servisním technikem profese silnoproudu -  důvodu revize zařízení, za účelem správného fungování po opětovné montáži svítidel","Ostatní","hod",16,null,null,0,0,0]
["5.8","Protipožární ucpávka","Ostatní","kpt",1,null,null,0,0,0]
["5.9","Dílenská dokumentace","Ostatní","kpt",1,null,null,0,0,0]
["5.10","Dodavatelská dokumentace","Ostatní","kpt",1,null,null,0,0,0]
["5.11","Dokumentace skutečného provedení stavby","Ostatní","kpt",1,null,null,0,0,0]
[]
["5","OSTATNÍ CELKEM",null,null,null,null,null,null,null,{"$f":"SUM(J50:J60)","v":0}]
[]
[null,"CELKEM",null,null,null,null,null,null,null,{"$f":"SUM(J46,J62,J39,J30,J18)","v":0}]
[]
[]
[null,"Jiné materiály, montáž, atd., neuvedené výše, ale které je nutné zahrnout do celkového rozsahu prací podle výkresů a praxe dodavatele. Prosím, uveďte podrobný technický popis a cenovou kalkulaci. "]

{"sheet":"SR102_RN ","index":8,"n_rows":15,"n_cols":4,"rows_kept":15,"cut":false,"hidden":false,"merged":[]}
[null,null,"REKAPITULACE "]
[null,null,"REKONSTRUKCE KLIMATIZACE OBJEKTU Q, větev c1"]
[]
[null,null,"SO03 Objekt Specializovaných výukových prostor"]
[null,null,"D1.4.4 Měření a regulace"]
[]
[null,"Položka","Název","Celkem"]
[null,1,"ŘÍDICÍ STANICE",{"$f":"SR102_Slepy_rozpocet!J21","v":0}]
[null,2,"ROZVADĚČE A SKŘÍŇKY",{"$f":"SR102_Slepy_rozpocet!J30","v":0}]
[null,3,"KABELY",{"$f":"SR102_Slepy_rozpocet!J45","v":0}]
[null,4,"MONTÁŽNÍ MATERIÁL",{"$f":"SR102_Slepy_rozpocet!J58","v":0}]
[null,5,"POLNÍ INSTRUMENTACE",{"$f":"SR102_Slepy_rozpocet!J70","v":0}]
[null,6,"SOFTWARE A PRACOVNÍ STANICE",{"$f":"SR102_Slepy_rozpocet!J82","v":0}]
[null,7,"OSTATNÍ",{"$f":"SR102_Slepy_rozpocet!J100","v":0}]
[null,null,"CELKEM bez DPH",{"$f":"SUM(D8:D14)","v":0}]

{"sheet":"SR102_Slepy_rozpocet","index":9,"n_rows":104,"n_cols":10,"rows_kept":104,"cut":false,"hidden":false,"merged":[]}
["Pořadové číslo","Popis položky","Název","Měrná","Množství","Jednotková cena","Jednotková cena ","Celková cena ","Celková cena ","Celková cena"]
[null,null,null,"jednotka",null,"dodávky","montáže","dodávky","montáže"]
[]
[null,"Nově dodaný řídicí systém musí být kompatibilní se stávajícím systémem vybudovaným v rámci MZLU Objektu Q. Nově dodaný řídicí systém bude zaintegrován do stávající vizualizace MZLU ve které budou doplněny nové obrazovky. Je nepřípustné dodávat novou licenci vizualizačního software a vytvářet samostatnou vizualizaci nové technologie!"]
[]
[1,"ŘÍDICÍ STANICE"]
[]
[null,"Rozvaděč RM02.3"]
[null,"AI 45; DI 12; AO 7; DO 19"]
["1.1","Eagle - univerzální regulátor podporující standardy BACnet IP, BACnet MS/TP, LonWorks, Panel-Bus, Meter-Bus, ModBus, 600 I/O, webserver (integrované 10UI, 4AO, 4DI, 8DO), výstup pro displej","Univerzální regulátor, např.: CLEA2026B31","ks",1,null,null,{"$f":"F10*E10","v":0},{"$f":"G10*E10","v":0},{"$f":"H10+I10","v":0}]
["1.2","Digitální vstupní modul (XF823A) - 12 DI (Panel Bus)","Rozšiřující modul, např.: CLIOP823","ks",1,null,null,0,0,0]
["1.3","Svorkovnicový modul pro digitální vstupní moduly (obsahující svorkovnici, propojku modulů a popisovací štítek)","Svorkovnicový modul, např.: XS823","ks",1,null,null,0,0,0]
["1.4","Digitální výstupní modul (XF824A) - 6 DO (Panel Bus)","Rozšiřující modul, např.: CLIOP824A","ks",2,null,null,0,0,0]
["1.5","Svorkovnicový modul pro reléové a 3-polohové moduly (obsahující svorkovnici, propojku modulů a popisovací štítek)","Svorkovnicový modul, např.: XS824-25","ks",2,null,null,0,0,0]
["1.6","Analogový vstupní modul (XF821A) - 8 AI (Panel Bus)","Rozšiřující modul, např.: CLIOP821A","ks",5,null,null,0,0,0]
["1.7","Analogový výstupní modul (XF822A) - 8 AO (Panel Bus)","Rozšiřující modul, např.: CLIOP822A","ks",1,null,null,0,0,0]
["1.8","Svorkovnicový modul pro analogové vstupně / výstupní moduly (obsahující svorkovnici, propojku modulů a popisovací štítek)","Svorkovnicový modul, např.: XS821-22","ks",6,null,null,0,0,0]
["1.9","HMI panel s dotykovým displejem, 10.1\" LCD TFT display, LED podsvícení, rozlišení 1024x600, 1x Ethernet, 3x sériový porst RS232/485, 1x USB host, IP65, 24V","HMI panel","ks",1,null,null,0,0,0]
["1.10","Ethernetový switch 5port na DIN lištu","Ethernetový switch","ks",1,null,null,0,0,0]
[]
[1,"ŘÍDICÍ STANICE CELKEM",null,null,null,null,null,null,null,{"$f":"SUM(J10:J19)","v":0}]
[]
["2","ROZVADĚČE A SKŘÍNKY "]
[]
[null,"V položkách jsou započteny i náklady na případné sestavení dílců dříve demontovaných z důvodů dopravy, a dále usazení, vyvážení, upevnění montáž a zapojení demontovaných přístrojů a víka, kontolru spojů a jejich dotažení"]
[]
["2.1","Rozvaděč RM02.3",null,"ks",1,null,null,{"$f":"F27*E27","v":0},{"$f":"G27*E27","v":0},{"$f":"H27+I27","v":0}]
[null,"Rozvaděč bude tvořen oceloplechovou skříní o rozměrech 2000x1000x400 (v x š x h), IP54/20 s kapsou na dokumentaci. Rozvaděč bude umístěn na soklu 100mm. Rozvaděč bude vyzbrojen hlavním vypínačem, zdrojem 230VAC/24VDC, transformátorem 230VAC/24VAC, jisticími obvody zdroje, jistícími a ovládacími vývody pro pohony regulačních ventilů, jistícími a ovládacími obvody, přepěťovou ochranou typu 3, ovládacími a signalizačními prvky a operátorským panelem na panelu rozvaděče, svorkovnicemi pro připojení pohonů, polní instrumentace. Dále bude obsahovat řídící systém dle požadované konfigurace vstupů a výstupů, komunikačních rozhraní. Přívody a vývody budou provedeny shora přes kabelové vývodky. Rozvaděč bude vybaven dle potřeby napájených zařízení viz Tabulka strojů a zařízení."]
[]
["2","ROZVADĚČE A SKŘÍNKY CELKEM",null,null,null,null,null,null,null,{"$f":"SUM(J27:J29)","v":0}]
[]
["3","KABELY"]
[]
[null,"V položkách jsou započteny i náklady na naznačení trasy vedení, přípravu svitků a bubnů, položení přip. protahování vodičů, šňůr a kabelů, vyrovnání a vytvarování ohybů, zajištění konců proti poškození izolace, označení štítky a vyzkoušení izolačního stavu, spolu s pomocnými montážními pracemi a materiálem, ukončením kabelů na svorkovnici zařízení a v rozvaděči"]
[]
["3.1","CYKY-J 3x1,5","Kabel","m",631,null,null,{"$f":"F36*E36","v":0},{"$f":"G36*E36","v":0},{"$f":"H36+I36","v":0}]
["3.2","CYKY-J 3x2,5","Kabel","m",679,null,null,0,0,0]
["3.3","CYKY-O 4x1,5","Kabel","m",1409,null,null,0,0,0]
["3.4","JYTY-O 2x1 ","Kabel","m",4778,null,null,0,0,0]
["3.5","JYTY-O 4x1 ","Kabel","m",731,null,null,0,0,0]
["3.6","JYTY-O 7x1 ","Kabel","m",91,null,null,0,0,0]
["3.7","J-Y(st)Y 2x2x0,8","Kabel","m",144,null,null,0,0,0]
["3.8","FTP 4p, Cat 6","Kabel","m",24,null,null,0,0,0]
[]
["3","KABELY CELKEM",null,null,null,null,null,null,null,{"$f":"SUM(J36:J44)","v":0}]
[]
["4","MONTÁŽNÍ MATERIÁL"]
[]
[null,"V položkách jsou započteny i náklady na naznačení trasy vedení, přípravu svitků a bubnů, označení štítky, spolu s pomocnými montážními pracemi a materiálem"]
[]
["4.1","Kabelový žlab, pozinkovaný s víkem 125x50 mm, včetně nosných konstrukcí a spojovacích dílů, dělící přepážka ","Kabelový žlab","m",115,null,null,{"$f":"F51*E51","v":0},{"$f":"G51*E51","v":0},{"$f":"H51+I51","v":0}]
["4.2","Kabelový žlab, pozinkovaný s víkem 62x50 mm, včetně nosných konstrukcí a spojovacích dílů, dělící přepážka ","Kabelový žlab","m",59,null,null,0,0,0]
["4.3","Trubka instalační plastová ohebná průměr 25mm, včetně upevňovacího a instalačního materiálu","Instalační trubka","m",150,null,null,0,0,0]
["4.4","Trubka instalační plastová pevná průměr 25mm, včetně upevňovacího a montážního materiálu","Instalační trubka","m",300,null,null,0,0,0]
["4.5","Lišta elektroinstalační hranatá 40x20mm, včetně upevňovacího a montážního materiálu","Instalační lišta","m",200,null,null,0,0,0]
["4.6","Kabelová krabicová rozvodka 88x88x53 mm (šxvxh),skříň s předlisy, 5x svorka 1,5-2,5mm2, povrch stěny lze použít pro kabelové vývodky max. M 20, pro chráněné instalace, IP 65, RAL 7035, Materiál - termoplast","Instalační materiál","ks",20,null,null,0,0,0]
[]
["4","MONTÁŽNÍ MATERIÁL CELKEM",null,null,null,null,null,null,null,{"$f":"SUM(J51:J56)","v":0}]
[]
["5","POLNÍ INSTRUMENTACE"]
[]
["5.1","Odporový snímač teploty, prostorový plastový, 0÷60°C, Ni1000/6180, včetně držáku na zeď","Polní instumentace","ks",16,null,null,{"$f":"F62*E62","v":0},{"$f":"G62*E62","v":0},{"$f":"H62+I62","v":0}]
["5.2","Odporový snímač teploty, se stonkem a s plastovou hlavicí , délka stonku 120 mm, rozsah -30÷60°C, Ni 1000/6180, včetně kovového držáku 100mm","Polní instumentace","ks",2,null,null,0,0,0]
["5.3","Odporový snímač teploty, se stonkem a s plastovou hlavicí , délka stonku 240 mm, rozsah -30÷60°C,  Ni 1000/6180, včetně kovového držáku 220mm","Polní instumentace","ks",25,null,null,0,0,0]
["5.4","Diferenční tlakový spínač, 20÷300 Pa, s připojovací sadou, se stupnicí v Pa, s držákem snímače, s hadičkami a plastovými konektory na VZT kanál","Polní instumentace","ks",1,null,null,0,0,0]
["5.5","Klapkový pohon, krouticí moment 5 Nm, napajení 230 VAC, řízení otevřít/zavřít, příkon 4 VA, kabel 1 m 3x0,75 mm","Polní instumentace","ks",13,null,null,0,0,0]
["5.6","Klapkový pohon, krouticí moment 5 Nm, napajení 24 V AC/DC, řízení 0-10V, příkon 2 VA, kabel 1 m 4x0,75 mm, zpětné hlášení polohy","Polní instumentace","ks",2,null,null,0,0,0]
["5.7","Magnetický okenní kontakt, materiál hliník, k nalepení nebo našroubování, 0,5A/100V, včetně připojovacího kabelu a propojovací krabice, svorek, lisování nebo pájení na kabel J-Y(st)Y 2x2x0,8 mm","Polní instumentace","ks",7,null,null,0,0,0]
[]
["5","POLNÍ INSTRUMENTACE CELKEM",null,null,null,null,null,null,null,{"$f":"SUM(J62:J68)","v":0}]
[]
["6","SOFTWARE"]
[]
["6.1","Zpracování SW - uživatelský SW pro programovatelné podstanice +RM02.3","Software","d.b.",83,null,null,{"$f":"F74*E74","v":0},{"$f":"G74*E74","v":0},{"$f":"H74+I74","v":0}]
["6.2","Zpracování SW - vizualizace pro programovatelné podstanice +RM02.3","Software","d.b.",83,null,null,{"$f":"F75*E75","v":0},{"$f":"G75*E75","v":0},{"$f":"H75+I75","v":0}]
[]
["6.3","Úprava stávajícího SW o nové kazetové jednotky - uživatelský SW pro programovatelné podstanice +RM01.4","Software","ks",1,null,null,{"$f":"F77*E77","v":0},{"$f":"G77*E77","v":0},{"$f":"H77+I77","v":0}]
["6.4","Úprava stávajícího SW o nové kazetové jednotky - vizualizace pro programovatelné podstanice +RM01.4","Software","ks",1,null,null,{"$f":"F78*E78","v":0},{"$f":"G78*E78","v":0},{"$f":"H78+I78","v":0}]
[]
["6.5","Rozšíření stávající licence vizualizace","Rozšíření stávající licence vizualizace","ks",1,null,null,{"$f":"F80*E80","v":0},{"$f":"G80*E80","v":0},{"$f":"H80+I80","v":0}]
[]
["6","SOFTWARE CELKEM",null,null,null,null,null,null,null,{"$f":"SUM(J74:J80)","v":0}]
[]
["7","OSTATNÍ"]
[]
["7.1","Informační systém - štítky","Ostatní","kpt",1,null,null,{"$f":"F86*E86","v":0},{"$f":"G86*E86","v":0},{"$f":"H86+I86","v":0}]
["7.2","Přípravu odboček pro nové rozvaděče MaR, ze stávající komunikace C-BUS","Ostatní","ks",1,null,null,0,0,0]
["7.3","Oživení a zprovoznění systému, zaregulování systému, požadované funkční zkoušky, nastavení parametrů regulovaných okruhů po vyhodnocení zkušebního provozu","Ostatní","hod",32,null,null,0,0,0]
["7.4","Parametrizace polní instrumentace, požadované funkční zkoušky","Ostatní","kpt",10,null,null,0,0,0]
["7.5","Zkoušky a prohlídky elektrických rozvodů a zařízení, celková prohlídka a vyhotovení revizní zprávy pro objem montážních prací ","Ostatní","hod",18,null,null,0,0,0]
["7.6","Inženýrská činnost","Ostatní","hod",12,null,null,0,0,0]
["7.7","Koordinace s ostatními profesemi","Ostatní","hod",18,null,null,0,0,0]
["7.8","Protipožární ucpávka","Ostatní","kpt",1,null,null,0,0,0]
["7.9","Zaškolení obsluhy, včetně předání katalogových listů a montážních návodů","Ostatní","hod",6,null,null,0,0,0]
["7.10","Zkoušky komunikace","Ostatní","hod",12,null,null,0,0,0]
["7.11","Dílenská dokumentace","Ostatní","kpt",1,null,null,0,0,0]
["7.12","Dodavatelská dokumentace","Ostatní","kpt",1,null,null,0,0,0]
["7.13","Dokumentace skutečného provedení stavby","Ostatní","kpt",1,null,null,0,0,0]
[]
["7","OSTATNÍ CELKEM",null,null,null,null,null,null,null,{"$f":"SUM(J86:J99)","v":0}]
[]
[null,"CELKEM",null,null,null,null,null,null,null,{"$f":"J21+J30+J45+J58+J70+J82+J100","v":0}]
[]
[null,"Jiné materiály, montáž, atd., neuvedené výše, ale které je nutné zahrnout do celkového rozsahu prací podle výkresů a praxe dodavatele. Prosím, uveďte podrobný technický popis a cenovou kalkulaci. "]

{"sheet":"List1","index":10,"n_rows":0,"n_cols":0,"rows_kept":0,"cut":false,"hidden":false,"merged":[]}